Amount (�),Supplier,Service ,Division,Cost Centre,Cost Centre Code,Expenditure Category,Date Paid,Type,Transaction Reference,Dept,
"7,336,011.50",Nottinghamshire County Council,Collection Fund,Precepting Authorities,Notts Cc Precept & Ndr Share,5930,Precept Paid,01/07/2019,Collection Fund Accounts,95519,FINANCE & CORPORATE SERVICES,
"7,336,011.50",Nottinghamshire County Council,Collection Fund,Precepting Authorities,Notts Cc Precept & Ndr Share,5930,Precept Paid,02/08/2019,Collection Fund Accounts,95532,FINANCE & CORPORATE SERVICES,
"7,336,011.50",Nottinghamshire County Council,Collection Fund,Precepting Authorities,Notts Cc Precept & Ndr Share,5930,Precept Paid,10/09/2019,Collection Fund Accounts,95520,FINANCE & CORPORATE SERVICES,
"937,076.00",Notts Police & Crime Commissioner,Collection Fund,Precepting Authorities,Notts Police Precept & Ndr,5932,Precept Paid,01/07/2019,Collection Fund Accounts,95527,FINANCE & CORPORATE SERVICES,
"937,076.00",Notts Police & Crime Commissioner,Collection Fund,Precepting Authorities,Notts Police Precept & Ndr,5932,Precept Paid,02/08/2019,Collection Fund Accounts,95540,FINANCE & CORPORATE SERVICES,
"937,076.00",Notts Police & Crime Commissioner,Collection Fund,Precepting Authorities,Notts Police Precept & Ndr,5932,Precept Paid,10/09/2019,Collection Fund Accounts,95528,FINANCE & CORPORATE SERVICES,
"691,142.00",Nottinghamshire County Council,General Fund Summary,Cies,Taxn & Non Spec Grant Inc,1994,Ndr Income,01/07/2019,Transfers Income,97720,TRANSFORMATION,
"366,321.00",Notts Fire And Rescue Service,Collection Fund,Precepting Authorities,Notts Fire Precept & Ndr,5933,Precept Paid,01/07/2019,Collection Fund Accounts,95523,FINANCE & CORPORATE SERVICES,
"366,321.00",Notts Fire And Rescue Service,Collection Fund,Precepting Authorities,Notts Fire Precept & Ndr,5933,Precept Paid,02/08/2019,Collection Fund Accounts,95536,FINANCE & CORPORATE SERVICES,
"366,321.00",Notts Fire And Rescue Service,Collection Fund,Precepting Authorities,Notts Fire Precept & Ndr,5933,Precept Paid,10/09/2019,Collection Fund Accounts,95524,FINANCE & CORPORATE SERVICES,
"254,901.61",Thomas Bow Ltd,Capital Expenditure,Transformation & Innovation,Cotgrave Masterplan,0303,Legal & Professional Services,19/08/2019,Supplies & Services,98975,CAPITAL,
"158,500.00",Glen Wilson Ltd,Capital Expenditure,Neighbourhoods,Clc Pool Ventilation,0343,Contractors-Third Party,08/08/2019,Third Party Payments,97950,CAPITAL,
"150,059.00",Radcliffe On Trent Parish Council,General Fund Summary,Cies,Parish Council Precepts,1990,Parish Precepts,25/09/2019,Transfers Expenditure,95413,TRANSFORMATION,
"149,795.00",Ruddington Parish Council,General Fund Summary,Cies,Parish Council Precepts,1990,Parish Precepts,25/09/2019,Transfers Expenditure,95416,TRANSFORMATION,
"142,650.00",Glen Wilson Ltd,Capital Expenditure,Neighbourhoods,Clc Pool Ventilation,0343,Contractors-Third Party,26/07/2019,Third Party Payments,98267,CAPITAL,
"141,707.00",Bingham Town Council (Precept),General Fund Summary,Cies,Parish Council Precepts,1990,Parish Precepts,25/09/2019,Transfers Expenditure,95379,TRANSFORMATION,
"141,678.00",East Leake Parish Council,General Fund Summary,Cies,Parish Council Precepts,1990,Parish Precepts,25/09/2019,Transfers Expenditure,95392,TRANSFORMATION,
"138,489.57",Streetwise Environmental Ltd,Neighbourhoods,Waste & Fleet Management,Streetwise Contract,8301,Contractors-Third Party,25/09/2019,Third Party Payments,99946,NEIGHBOURHOODS,
"138,108.34",Streetwise Environmental Ltd,Neighbourhoods,Waste & Fleet Management,Streetwise Contract,8301,Contractors-Third Party,26/07/2019,Third Party Payments,98319,NEIGHBOURHOODS,
"138,108.34",Streetwise Environmental Ltd,Neighbourhoods,Waste & Fleet Management,Streetwise Contract,8301,Contractors-Third Party,21/08/2019,Third Party Payments,99039,NEIGHBOURHOODS,
"136,345.91",Thomas Bow Ltd,Capital Expenditure,Transformation & Innovation,Cotgrave Masterplan,0303,Legal & Professional Services,10/07/2019,Supplies & Services,98038,CAPITAL,
"122,090.55",Thomas Bow Ltd,Capital Expenditure,Transformation & Innovation,Cotgrave Masterplan,0303,Legal & Professional Services,25/09/2019,Supplies & Services,100140,CAPITAL,
"109,650.00",Cotgrave Town Council,General Fund Summary,Cies,Parish Council Precepts,1990,Parish Precepts,25/09/2019,Transfers Expenditure,95385,TRANSFORMATION,
"97,000.00",Via East Midlands Ltd,Finance & Corporate Services,Financial Services,Financial Services,4705,Other Miscellaneous Expenses,08/08/2019,Supplies & Services,86898,FINANCE & CORPORATE SERVICES,
"88,425.00",Keyworth Parish Council,General Fund Summary,Cies,Parish Council Precepts,1990,Parish Precepts,25/09/2019,Transfers Expenditure,95402,TRANSFORMATION,
"87,300.00",South Kesteven D C,Communities,Building Control,Building Control - Fee Earning,1151,Other Local Authorities,19/08/2019,Third Party Payments,99046,COMMUNITIES,
"76,424.40",Glen Wilson Ltd,Capital Expenditure,Neighbourhoods,Clc Pool Ventilation,0343,Contractors-Third Party,08/08/2019,Third Party Payments,98618,CAPITAL,
"74,195.00",Nottingham City Council,Neighbourhoods,Waste & Fleet Management,Eastcroft Depot,4002,Olas - Nottm City Council,30/09/2019,Third Party Payments,100235,NEIGHBOURHOODS,
"60,782.62",Gedling Borough Council,Assets,Current Assets,European Election,7102,Election Fees,19/07/2019,Employee Related Expenditure,98368,FINANCE & CORPORATE SERVICES,
"58,561.71",Cleveland Land Services,Capital Expenditure,Neighbourhoods,Blc Enhancements,0417,Contractors-Third Party,19/08/2019,Third Party Payments,98744,CAPITAL,
"55,000.00",Trent Bridge Community Trust,Communities,Community Development,Community Development,1581,Projects & Activities,08/08/2019,Supplies & Services,98828,COMMUNITIES,
"45,867.50",Cropwell Bishop Parish Council,General Fund Summary,Cies,Parish Council Precepts,1990,Parish Precepts,25/09/2019,Transfers Expenditure,95387,TRANSFORMATION,
"44,443.17",Nottinghamshire County Council,Neighbourhoods,Leisure Contracts & Car Parks,East Leake Leisure Centre,1700,Olas - Notts County Council,03/07/2019,Third Party Payments,97329,FINANCE & CORPORATE SERVICES,
"44,443.17",Nottinghamshire County Council,Neighbourhoods,Leisure Contracts & Car Parks,East Leake Leisure Centre,1700,Olas - Notts County Council,03/07/2019,Third Party Payments,97399,FINANCE & CORPORATE SERVICES,
"40,732.79",Cleveland Land Services,Capital Expenditure,Neighbourhoods,Blc Enhancements,0417,Contractors-Third Party,17/09/2019,Third Party Payments,99684,CAPITAL,
"31,522.04",Nottingham City Council,Neighbourhoods,Waste & Fleet Management,Fleet,8600,Diesel,28/08/2019,Transport Related Expenditure,99255,NEIGHBOURHOODS,
"30,394.00",Allan Joyce Architects Ltd,Capital Income,Capital Receipts,Gresham Old Pavilion Land,0952,Legal & Professional Services,01/07/2019,Supplies & Services,97600,CAPITAL,
"29,337.00",Tollerton Parish Council,General Fund Summary,Cies,Parish Council Precepts,1990,Parish Precepts,25/09/2019,Transfers Expenditure,95427,TRANSFORMATION,
"28,950.92",Nottingham City Council,Neighbourhoods,Waste & Fleet Management,Fleet,8600,Diesel,28/08/2019,Transport Related Expenditure,99257,NEIGHBOURHOODS,
"27,816.03",Nottingham City Council,Neighbourhoods,Waste & Fleet Management,Fleet,8600,Diesel,10/09/2019,Transport Related Expenditure,99749,NEIGHBOURHOODS,
"26,474.94",Nottingham City Council,Neighbourhoods,Waste & Fleet Management,Garage,8700,Contractors-Transport,30/07/2019,Transport Related Expenditure,98598,NEIGHBOURHOODS,
"26,220.15",Nottingham City Council,Neighbourhoods,Waste & Fleet Management,Garage,8700,Contractors-Transport,10/09/2019,Transport Related Expenditure,99747,NEIGHBOURHOODS,
"24,919.45",Nottingham City Council,Neighbourhoods,Waste & Fleet Management,Garage,8700,Contractors-Transport,28/08/2019,Transport Related Expenditure,99152,NEIGHBOURHOODS,
"24,428.24",J Tomlinson Ltd,Capital Expenditure,Transformation & Innovation,Cotgrave Employment Land,0371,Legal & Professional Services,21/08/2019,Supplies & Services,99244,CAPITAL,
"24,290.00",Woodscape Limited,Capital Expenditure,Communties,Arena Public Art Project,0679,Contractors-Third Party,25/09/2019,Third Party Payments,97015,CAPITAL,
"24,276.59",Nottingham City Council,Neighbourhoods,Waste & Fleet Management,Fleet,8600,Diesel,19/08/2019,Transport Related Expenditure,98698,NEIGHBOURHOODS,
"19,817.00",East Bridgford Parish Council,General Fund Summary,Cies,Parish Council Precepts,1990,Parish Precepts,25/09/2019,Transfers Expenditure,95390,TRANSFORMATION,
"19,073.00",Gotham Parish Council,General Fund Summary,Cies,Parish Council Precepts,1990,Parish Precepts,25/09/2019,Transfers Expenditure,95395,TRANSFORMATION,
"18,650.00",Holme Pierrepont & Gamston Parish Council,General Fund Summary,Cies,Parish Council Precepts,1990,Parish Precepts,25/09/2019,Transfers Expenditure,95400,TRANSFORMATION,
"18,525.00",Idox Software Limited,Capital Expenditure,Finance & Corporate,Applications/Apps,0605,Software,12/07/2019,Supplies & Services,97799,CAPITAL,
"18,470.50",Langar Cum Barnstone Parish Council,General Fund Summary,Cies,Parish Council Precepts,1990,Parish Precepts,25/09/2019,Transfers Expenditure,95406,TRANSFORMATION,
"18,369.60",Hmrc,Finance & Corporate Services,Democratic Services,Borough Council Elections,1021,Election Fees,22/07/2019,Employee Related Expenditure,98435,FINANCE & CORPORATE SERVICES,
"18,341.82",Nottingham City Council,Neighbourhoods,Waste & Fleet Management,Fleet,8600,Diesel,19/08/2019,Transport Related Expenditure,98697,NEIGHBOURHOODS,
"18,250.00",Civica Uk Ltd,Finance & Corporate Services,Ict,It Rechargeable Costs,4722,Maintenance Contracts - S&S,27/08/2019,Supplies & Services,99085,TRANSFORMATION,
"16,159.68",Toot Hill School,Neighbourhoods,Leisure Contracts & Car Parks,Leisure Management Contract,1795,Electricity,12/07/2019,Premises Related Expenditure,97703,FINANCE & CORPORATE SERVICES,
"15,500.00",Whatton-Aslockton Playing Field Trust,Liabilities,Long Term Liabilities,Abbey Ln Aslocktn 14/00480/Out,6761,Balance Sheet Exp In The Year,19/07/2019,Balance Sheet Exp In The Year,98130,FINANCE & CORPORATE SERVICES,
"15,337.41",Nottingham County Council,Liabilities,Long Term Liabilities,Camelot  Rudd - Trans 01/1136,6373,Balance Sheet Exp In The Year,12/07/2019,Balance Sheet Exp In The Year,98131,COMMUNITIES,
"15,000.00",Cotgrave Methodist Church,Capital Expenditure,Communties,Capital Grant Funding,0651,Grants,16/07/2019,Supplies & Services,98003,CAPITAL,
"14,902.56",Aumas Limited,Capital Expenditure,Neighbourhoods,Disabled Facilities Grant,0332,Grants,17/09/2019,Supplies & Services,99560,CAPITAL,
"14,695.00",P J Lilley Limited,Capital Expenditure,Neighbourhoods,Arena Development,0415,Responsive Works - Buildings,30/09/2019,Premises Related Expenditure,99692,CAPITAL,
"14,318.80",Hmrc,Assets,Current Assets,European Election,7102,Election Fees,22/07/2019,Employee Related Expenditure,98434,FINANCE & CORPORATE SERVICES,
"14,174.99",Print Image Facilities Llp,Finance & Corporate Services,Democratic Services,Electoral Registration,1026,Postages,26/07/2019,Supplies & Services,98044,FINANCE & CORPORATE SERVICES,
"13,943.00",Proludic,Capital Expenditure,Communties,The Hook Play Area,0660,Other Equipment/Materials,12/07/2019,Supplies & Services,98162,CAPITAL,
"13,752.80",Ccs Media,Capital Expenditure,Finance & Corporate,Ict Replacement Programme,0592,Computer Hardware,02/08/2019,Supplies & Services,98383,CAPITAL,
"13,447.20",One51 Es Plastics (Uk) Ltd T/A Mgb Plastics,Capital Expenditure,Neighbourhoods,Wheeled Bins,0310,Other Equipment/Materials,12/07/2019,Supplies & Services,97837,CAPITAL,
"13,275.60",One51 Es Plastics (Uk) Ltd T/A Mgb Plastics,Capital Expenditure,Neighbourhoods,Wheeled Bins,0310,Other Equipment/Materials,10/07/2019,Supplies & Services,97635,CAPITAL,
"13,220.00",Egbert H Taylor & Co Ltd,Capital Expenditure,Neighbourhoods,Wheeled Bins,0310,Other Equipment/Materials,10/09/2019,Supplies & Services,99741,CAPITAL,
"13,000.00",Egbert H Taylor & Co Ltd,Capital Expenditure,Neighbourhoods,Wheeled Bins,0310,Other Equipment/Materials,09/08/2019,Supplies & Services,98596,CAPITAL,
"12,917.00",Civica Uk Ltd,Finance & Corporate Services,Ict,It Rechargeable Costs,4722,Maintenance Contracts - S&S,17/09/2019,Supplies & Services,99740,TRANSFORMATION,
"12,900.50",Sutton Bonington Parish Council,General Fund Summary,Cies,Parish Council Precepts,1990,Parish Precepts,25/09/2019,Transfers Expenditure,95424,TRANSFORMATION,
"12,750.00",Meritec Ltd,Finance & Corporate Services,Ict,It Rechargeable Costs,4722,Maintenance Contracts - S&S,17/09/2019,Supplies & Services,98625,TRANSFORMATION,
"12,713.97",Centrica Business Solutions Uk Limited,Transformation,Property Services,Arena Civic Centre,4718,Service Maintenance Contracts,10/09/2019,Premises Related Expenditure,99357,TRANSFORMATION,
"12,358.45",Xpress Software Solutions Ltd,Finance & Corporate Services,Ict,It Rechargeable Costs,4722,Maintenance Contracts - S&S,10/07/2019,Supplies & Services,97714,TRANSFORMATION,
"12,145.00",Woodscape Limited,Capital Expenditure,Communties,Arena Public Art Project,0679,Contractors-Third Party,19/07/2019,Third Party Payments,98316,CAPITAL,
"12,145.00",Woodscape Limited,Capital Expenditure,Communties,Arena Public Art Project,0679,Contractors-Third Party,25/09/2019,Third Party Payments,98317,CAPITAL,
"10,349.31",Certas Energy T/A Pace Fuelcare,Neighbourhoods,Waste & Fleet Management,Fleet,8600,Diesel,05/09/2019,Transport Related Expenditure,98763,NEIGHBOURHOODS,
"10,278.00",Geldards Llp,Capital Expenditure,Transformation & Innovation,6 Boundary Court Castle Don.,0388,Legal & Professional Services,27/08/2019,Supplies & Services,95647,CAPITAL,
"10,102.50",Meritec Ltd,Capital Expenditure,Finance & Corporate,Web Enhancement/Channel Shift,0599,Software,17/09/2019,Supplies & Services,98625,CAPITAL,
"10,084.80",Wireless Cctv Ltd,Finance & Corporate Services,Financial Services,Suspense No Code,5224,Returned Creditors,02/09/2019,Returned Creditors,99483,FINANCE & CORPORATE SERVICES,
"10,000.00",Ashfield District Council,Neighbourhoods,Strategic Housing,Homelessness Prevention,1147,Projects & Activities,12/07/2019,Supplies & Services,98049,NEIGHBOURHOODS,
"10,000.00",Learning Pool Ltd,Transformation,Human Resources,Corporate Training,4893,Subscriptions,17/09/2019,Supplies & Services,99649,TRANSFORMATION,
"10,000.00",Zurich Municipal,Finance & Corporate Services,Financial Services,Main Premiums,4920,Excesses Paid,25/09/2019,Other Control/Suspense A/Cs,99833,FINANCE & CORPORATE SERVICES,
"9,898.16",Toot Hill School,Neighbourhoods,Leisure Contracts & Car Parks,Leisure Management Contract,1795,Gas,12/07/2019,Premises Related Expenditure,97703,FINANCE & CORPORATE SERVICES,
"9,810.70",Certas Energy T/A Pace Fuelcare,Neighbourhoods,Waste & Fleet Management,Fleet,8600,Diesel,26/07/2019,Transport Related Expenditure,98243,NEIGHBOURHOODS,
"9,810.70",Certas Energy T/A Pace Fuelcare,Neighbourhoods,Waste & Fleet Management,Fleet,8600,Diesel,02/08/2019,Transport Related Expenditure,98620,NEIGHBOURHOODS,
"9,632.00",P J Lilley Limited,Capital Expenditure,Neighbourhoods,Disabled Facilities Grant,0332,Grants,17/09/2019,Supplies & Services,99562,CAPITAL,
"9,334.39",Local Partnerships,Transformation,Property Services,Land Holdings,1884,Legal & Professional Services,19/09/2019,Supplies & Services,98961,TRANSFORMATION,
"9,306.59",Notts Police & Crime Commissioner,Transformation,Customer Services,Customer Services,4807,Other Services,21/08/2019,Supplies & Services,98979,TRANSFORMATION,
"9,208.65",Trevor Roberts Associates Ltd,Communities,Planning Policy,Development Plans,1232,Legal & Professional Services,10/07/2019,Supplies & Services,98002,COMMUNITIES,
"9,000.00",Challenge Consulting,Transformation,Human Resources,Corporate Training,4893,Training Expenses,25/09/2019,Employee Related Expenditure,99944,TRANSFORMATION,
"8,404.00",Wireless Cctv Ltd,Capital Expenditure,Finance & Corporate,Applications/Apps,0605,Software,19/08/2019,Supplies & Services,98853,CAPITAL,
"8,309.00",Aumas Limited,Capital Expenditure,Neighbourhoods,Disabled Facilities Grant,0332,Grants,16/07/2019,Supplies & Services,98022,CAPITAL,
"8,295.00",Vipre Security Limited,Finance & Corporate Services,Ict,It Rechargeable Costs,4722,Maintenance Contracts - S&S,19/09/2019,Supplies & Services,99150,TRANSFORMATION,
"8,280.00",Nottingham County Council,Liabilities,Long Term Liabilities,Cotgrave Colliery - Cycle Path,6739,Balance Sheet Exp In The Year,12/07/2019,Balance Sheet Exp In The Year,98132,FINANCE & CORPORATE SERVICES,
"7,948.00",Mazars Llp,Finance & Corporate Services,Financial Services,Corporate Management,4895,External Audit Fee,22/07/2019,Supplies & Services,98441,FINANCE & CORPORATE SERVICES,
"7,769.30",Intelligent Plans & Examinations (Ipe) Ltd,Communities,Planning Policy,Development Plans,1232,Legal & Professional Services,19/08/2019,Supplies & Services,99036,COMMUNITIES,
"7,471.00",A R Signs Ltd,Finance & Corporate Services,"Performance, Repn & Comms",Performance And Reputation,4710,External Printing,01/07/2019,Supplies & Services,97206,FINANCE & CORPORATE SERVICES,
"7,365.19",Thomson Reuters,Transformation,Legal,Legal Services,4701,Books & Publications,30/07/2019,Supplies & Services,98605,FINANCE & CORPORATE SERVICES,
"6,765.12",South Kesteven D C,Communities,Building Control,Building Control - Fee Earning,1151,Other Local Authorities,08/08/2019,Third Party Payments,98687,COMMUNITIES,
"6,664.93",Idox Software Limited,Finance & Corporate Services,Ict,It Rechargeable Costs,4722,Maintenance Contracts - S&S,03/07/2019,Supplies & Services,97451,TRANSFORMATION,
"6,650.00",Idox Software Limited,Capital Expenditure,Finance & Corporate,Applications/Apps,0605,Software,09/08/2019,Supplies & Services,98614,CAPITAL,
"6,586.60",A.T Alarms,Capital Expenditure,Transformation & Innovation,Bingham Leisure Hub,0314,Contractors-Third Party,10/09/2019,Third Party Payments,99287,CAPITAL,
"6,500.00",Rsm,Finance & Corporate Services,Financial Services,Internal Audit,4708,Legal & Professional Services,10/07/2019,Supplies & Services,97643,FINANCE & CORPORATE SERVICES,
"6,479.20",Tunstall Response Ltd,Neighbourhoods,Strategic Housing,Home Alarms,1137,Other Services,08/08/2019,Supplies & Services,98599,NEIGHBOURHOODS,
"6,473.21",Water Plus,Neighbourhoods,Waste & Fleet Management,Abbey Road Depot,4001,Water Charges,22/07/2019,Premises Related Expenditure,97903,NEIGHBOURHOODS,
"6,320.51",Print Image Network Ltd,Finance & Corporate Services,Democratic Services,Electoral Registration,1026,External Printing,19/08/2019,Supplies & Services,98857,FINANCE & CORPORATE SERVICES,
"6,215.50",Lodge Tyre Co.Ltd,Neighbourhoods,Waste & Fleet Management,Waste Collection,8403,Tyres,02/09/2019,Transport Related Expenditure,99568,NEIGHBOURHOODS,
"6,175.00",Rsm,Finance & Corporate Services,Financial Services,Internal Audit,4708,Legal & Professional Services,08/08/2019,Supplies & Services,98516,FINANCE & CORPORATE SERVICES,
"6,121.53",Broxtowe Borough Council,Finance & Corporate Services,Ict,It Rechargeable Costs,4722,Maintenance Contracts - S&S,12/07/2019,Supplies & Services,97765,TRANSFORMATION,
"6,025.00",York Archaeological Trust,Capital Expenditure,Transformation & Innovation,Abbey Road Redevelopment,0312,Legal & Professional Services,17/09/2019,Supplies & Services,97838,CAPITAL,
"5,900.00",Looking Local Ltd,Capital Expenditure,Finance & Corporate,Digital Strategy,0604,Software,25/09/2019,Supplies & Services,99694,CAPITAL,
"5,786.19",Frontline Recruitment Ltd,Neighbourhoods,Waste & Fleet Management,Waste Collection,8403,Agency Staff,05/09/2019,Employee Related Expenditure,99539,NEIGHBOURHOODS,
"5,785.00",Lodge Tyre Co.Ltd,Neighbourhoods,Waste & Fleet Management,Waste Collection,8403,Tyres,02/08/2019,Transport Related Expenditure,98751,NEIGHBOURHOODS,
"5,564.44",Frontline Recruitment Ltd,Neighbourhoods,Waste & Fleet Management,Waste Collection,8403,Agency Staff,08/08/2019,Employee Related Expenditure,98754,NEIGHBOURHOODS,
"5,528.00",Uk Property Rescue Ltd,Neighbourhoods,Environmental Health,Work In Default,1066,Fees & Charges - General,10/09/2019,Income,99787,NEIGHBOURHOODS,
"5,450.00",Tunstall Response Ltd,Capital Expenditure,Neighbourhoods,Assistive Technology,0335,Grants,02/08/2019,Supplies & Services,98354,CAPITAL,
"5,394.00",Kingkraft,Capital Expenditure,Neighbourhoods,Disabled Facilities Grant,0332,Grants,17/07/2019,Supplies & Services,98247,CAPITAL,
"5,343.17",The South Wolds Academy And Sixth Form,Neighbourhoods,Leisure Contracts & Car Parks,Leisure Management Contract,1795,Premises Rents,26/07/2019,Premises Related Expenditure,98129,FINANCE & CORPORATE SERVICES,
"5,305.55",Frontline Recruitment Ltd,Neighbourhoods,Waste & Fleet Management,Waste Collection,8403,Agency Staff,16/07/2019,Employee Related Expenditure,97987,NEIGHBOURHOODS,
"5,250.00",Fathom Consultancy Solutions Ltd,Capital Expenditure,Transformation & Innovation,Bingham Leisure Hub,0314,Legal & Professional Services,17/09/2019,Supplies & Services,99652,CAPITAL,
"5,238.22",Frontline Recruitment Ltd,Neighbourhoods,Waste & Fleet Management,Waste Collection,8403,Agency Staff,10/07/2019,Employee Related Expenditure,97523,NEIGHBOURHOODS,
"5,170.00",Apw (Nottm) Ltd,Capital Expenditure,Neighbourhoods,Disabled Facilities Grant,0332,Grants,30/07/2019,Supplies & Services,98587,CAPITAL,
"5,109.53",Frontline Recruitment Ltd,Neighbourhoods,Waste & Fleet Management,Waste Collection,8403,Agency Staff,19/08/2019,Employee Related Expenditure,99102,NEIGHBOURHOODS,
"5,048.91",Electoral Reform Services,Finance & Corporate Services,Democratic Services,Electoral Registration,1026,Telephone Response,25/09/2019,Supplies & Services,100131,FINANCE & CORPORATE SERVICES,
"5,000.00",Great Northern Refinery Limited,Transformation,Economic Regeneration,Economic Development,1887,Grants,20/09/2019,Supplies & Services,99928,TRANSFORMATION,
"5,000.00",Nottingham Rugby Ltd,Communities,Community Development,Community Development,1581,Grants,05/09/2019,Supplies & Services,99696,COMMUNITIES,
"5,000.00",Zurich Municipal,Finance & Corporate Services,Financial Services,Liability Claims,4921,Excesses Paid,01/07/2019,Other Control/Suspense A/Cs,97385,FINANCE & CORPORATE SERVICES,
"5,000.00",Zurich Municipal,Finance & Corporate Services,Financial Services,Liability Claims,4921,Excesses Paid,22/07/2019,Other Control/Suspense A/Cs,97980,FINANCE & CORPORATE SERVICES,
"4,947.00",Patco Events Ltd,Communities,Community Development,Arts,1550,Projects & Activities,19/07/2019,Supplies & Services,98016,COMMUNITIES,
"4,936.84",Frontline Recruitment Ltd,Neighbourhoods,Waste & Fleet Management,Waste Collection,8403,Agency Staff,10/07/2019,Employee Related Expenditure,97705,NEIGHBOURHOODS,
"4,930.00",Via East Midlands Ltd,Communities,Planning Policy,Land Charges,1033,Other Services,08/08/2019,Supplies & Services,98757,COMMUNITIES,
"4,925.00",Trent Valley Plumbing & Build,Capital Expenditure,Neighbourhoods,Disabled Facilities Grant,0332,Grants,19/08/2019,Supplies & Services,99071,CAPITAL,
"4,923.00",Uk Property Rescue Ltd,Neighbourhoods,Environmental Health,Housing Standards,1129,Legal & Professional Services,28/08/2019,Supplies & Services,99105,NEIGHBOURHOODS,
"4,884.74",Frontline Recruitment Ltd,Neighbourhoods,Waste & Fleet Management,Waste Collection,8403,Agency Staff,27/08/2019,Employee Related Expenditure,99351,NEIGHBOURHOODS,
"4,860.46",Toot Hill School,Neighbourhoods,Leisure Contracts & Car Parks,Leisure Management Contract,1795,Electricity,02/08/2019,Premises Related Expenditure,98503,FINANCE & CORPORATE SERVICES,
"4,698.00",Lodge Tyre Co.Ltd,Neighbourhoods,Waste & Fleet Management,Waste Collection,8403,Tyres,03/07/2019,Transport Related Expenditure,97810,NEIGHBOURHOODS,
"4,679.11",Frontline Recruitment Ltd,Neighbourhoods,Waste & Fleet Management,Waste Collection,8403,Agency Staff,16/07/2019,Employee Related Expenditure,98176,NEIGHBOURHOODS,
"4,663.00",P.Waller (Decorators) Ltd,Communities,Community Development,Lutterell Hall,8990,Responsive Works - Buildings,10/07/2019,Premises Related Expenditure,97923,COMMUNITIES,
"4,569.48",The National Leaflet Company,Finance & Corporate Services,"Performance, Repn & Comms",Performance And Reputation,4710,Other Services,10/07/2019,Supplies & Services,97848,FINANCE & CORPORATE SERVICES,
"4,551.65",Thomson Reuters,Transformation,Legal,Legal Services,4701,Books & Publications,30/07/2019,Supplies & Services,97772,FINANCE & CORPORATE SERVICES,
"4,520.00",Closomat Ltd,Capital Expenditure,Neighbourhoods,Disabled Facilities Grant,0332,Grants,26/07/2019,Supplies & Services,98028,CAPITAL,
"4,500.00",Looking Local Ltd,Capital Expenditure,Finance & Corporate,Digital Strategy,0604,Software,10/07/2019,Supplies & Services,97535,CAPITAL,
"4,500.00",Visavvi Saville Group,Finance & Corporate Services,Ict,It Rechargeable Costs,4722,Maintenance Contracts - S&S,10/09/2019,Supplies & Services,99388,TRANSFORMATION,
"4,466.14",Frontline Recruitment Ltd,Neighbourhoods,Waste & Fleet Management,Waste Collection,8403,Agency Staff,30/07/2019,Employee Related Expenditure,98586,NEIGHBOURHOODS,
"4,460.00",Allan Joyce Architects Ltd,Capital Expenditure,Transformation & Innovation,Abbey Road Redevelopment,0312,Legal & Professional Services,02/08/2019,Supplies & Services,98452,CAPITAL,
"4,395.01",Frontline Recruitment Ltd,Neighbourhoods,Waste & Fleet Management,Waste Collection,8403,Agency Staff,19/08/2019,Employee Related Expenditure,98977,NEIGHBOURHOODS,
"4,389.29",Yu Energy,Transformation,Property Services,Bridgford Hall,1883,Gas,19/08/2019,Premises Related Expenditure,97460,TRANSFORMATION,
"4,351.36",Frontline Recruitment Ltd,Neighbourhoods,Waste & Fleet Management,Waste Collection,8403,Agency Staff,19/08/2019,Employee Related Expenditure,98372,NEIGHBOURHOODS,
"4,310.00",Trent Valley Plumbing & Build,Capital Expenditure,Neighbourhoods,Disabled Facilities Grant,0332,Grants,19/08/2019,Supplies & Services,99066,CAPITAL,
"4,295.00",Trent Valley Plumbing & Build,Capital Expenditure,Neighbourhoods,Disabled Facilities Grant,0332,Grants,12/07/2019,Supplies & Services,97984,CAPITAL,
"4,276.80",Terminal Four,Finance & Corporate Services,Ict,It Rechargeable Costs,4722,Maintenance Contracts - S&S,17/09/2019,Supplies & Services,99597,TRANSFORMATION,
"4,220.00",Apw (Nottm) Ltd,Capital Expenditure,Neighbourhoods,Disabled Facilities Grant,0332,Grants,17/09/2019,Supplies & Services,99561,CAPITAL,
"4,206.00",Trent Valley Plumbing & Build,Capital Expenditure,Neighbourhoods,Disabled Facilities Grant,0332,Grants,19/08/2019,Supplies & Services,99072,CAPITAL,
"4,160.47",Frontline Recruitment Ltd,Neighbourhoods,Waste & Fleet Management,Waste Collection,8403,Agency Staff,19/09/2019,Employee Related Expenditure,99922,NEIGHBOURHOODS,
"4,147.92",The Saville Group Ltd,Capital Expenditure,Finance & Corporate,Technical Infrastructure,0603,Computer Hardware,03/07/2019,Supplies & Services,97628,CAPITAL,
"4,132.52",Streetwise Environmental Ltd,Assets,Current Assets,European Election,7102,Other Equipment/Materials,22/07/2019,Supplies & Services,98312,FINANCE & CORPORATE SERVICES,
"4,132.52",Streetwise Environmental Ltd,Finance & Corporate Services,Democratic Services,Borough Council Elections,1021,Other Equipment/Materials,22/07/2019,Supplies & Services,98313,FINANCE & CORPORATE SERVICES,
"4,125.00",Vinshire Plumbing & Heating Limited,Capital Expenditure,Communties,Warm Homes On Prescription,0337,Grants,10/07/2019,Supplies & Services,97642,CAPITAL,
"4,000.00",Arlingclose Ltd,Finance & Corporate Services,Financial Services,Interest Receipts,1034,Legal & Professional Services,19/08/2019,Supplies & Services,98702,FINANCE & CORPORATE SERVICES,
"4,000.00",Cornerstone Barristers,Finance & Corporate Services,Democratic Services,Members Services,1000,Legal & Professional Services,12/07/2019,Supplies & Services,97954,FINANCE & CORPORATE SERVICES,
"4,000.00",Inform Cpi Ltd,Finance & Corporate Services,Revenues & Benefits,Nndr,1038,Legal & Professional Services,19/09/2019,Supplies & Services,99925,FINANCE & CORPORATE SERVICES,
"3,973.00",Thomson Reuters,Transformation,Legal,Legal Services,4701,Books & Publications,30/07/2019,Supplies & Services,97773,FINANCE & CORPORATE SERVICES,
"3,906.50",Lodge Tyre Co.Ltd,Neighbourhoods,Waste & Fleet Management,Waste Collection,8403,Tyres,17/09/2019,Transport Related Expenditure,99655,NEIGHBOURHOODS,
"3,862.49",Bt Telephone Payment Centre,Finance & Corporate Services,Ict,It Rechargeable Costs,4722,Maintenance Contracts - S&S,02/09/2019,Supplies & Services,99352,TRANSFORMATION,
"3,844.00",Dolphin Mobility East Mids Ltd,Capital Expenditure,Neighbourhoods,Disabled Facilities Grant,0332,Grants,30/09/2019,Supplies & Services,100233,CAPITAL,
"3,805.52",Print Image Facilities Llp,Finance & Corporate Services,Democratic Services,Electoral Registration,1026,Postages,02/09/2019,Supplies & Services,99495,FINANCE & CORPORATE SERVICES,
"3,803.00",Proludic,Capital Expenditure,Communties,The Hook Play Area,0660,Other Equipment/Materials,12/07/2019,Supplies & Services,98163,CAPITAL,
"3,740.00",Baker Consultants Ltd,Communities,Planning & Growth,Development Control,1161,Legal & Professional Services,17/09/2019,Supplies & Services,99585,COMMUNITIES,
"3,573.00",Axess Systems Ltd,Finance & Corporate Services,Ict,It Rechargeable Costs,4722,Maintenance Contracts - S&S,03/07/2019,Supplies & Services,97800,TRANSFORMATION,
"3,460.12",Nottingham City Council,Capital Expenditure,Transformation & Innovation,Abbey Road Redevelopment,0312,Contractors-Third Party,19/08/2019,Third Party Payments,99084,CAPITAL,
"3,425.00",Water Centres Ltd,Capital Expenditure,Neighbourhoods,Disabled Facilities Grant,0332,Grants,17/09/2019,Supplies & Services,99563,CAPITAL,
"3,369.00",Trent Valley Plumbing & Build,Capital Expenditure,Neighbourhoods,Disabled Facilities Grant,0332,Grants,19/08/2019,Supplies & Services,99069,CAPITAL,
"3,355.00",Hmrc,Finance & Corporate Services,Financial Services,Apprenticeship Levy,1043,Other Services,17/07/2019,Supplies & Services,98300,FINANCE & CORPORATE SERVICES,
"3,279.00",Broxtowe Borough Council,Neighbourhoods,Leisure Contracts & Car Parks,Car Parks,1900,Maintenance Contracts - S&S,27/08/2019,Supplies & Services,99329,FINANCE & CORPORATE SERVICES,
"3,263.52",Frontline Recruitment Ltd,Neighbourhoods,Waste & Fleet Management,Waste Collection,8403,Agency Staff,25/09/2019,Employee Related Expenditure,100128,NEIGHBOURHOODS,
"3,225.00",Inform Cpi Ltd,Finance & Corporate Services,Revenues & Benefits,Nndr,1038,Legal & Professional Services,03/07/2019,Supplies & Services,97845,FINANCE & CORPORATE SERVICES,
"3,200.00",Lex Leisure,Assets,Current Assets,European Election,7102,Hire Of Rooms,26/07/2019,Supplies & Services,97771,FINANCE & CORPORATE SERVICES,
"3,168.00",Carrington West Limited,Finance & Corporate Services,Financial Services,Suspense No Code,5224,Returned Creditors,10/07/2019,Returned Creditors,97910,FINANCE & CORPORATE SERVICES,
"3,150.00",Inform Cpi Ltd,Finance & Corporate Services,Revenues & Benefits,Nndr,1038,Legal & Professional Services,03/07/2019,Supplies & Services,97840,FINANCE & CORPORATE SERVICES,
"3,144.00",Bsp Consulting,Capital Expenditure,Transformation & Innovation,Cotgrave Phase 2,0387,Legal & Professional Services,10/07/2019,Supplies & Services,97795,CAPITAL,
"3,100.00",Local Government Association,Transformation,Human Resources,Corporate Training,4893,Training Expenses,17/09/2019,Employee Related Expenditure,99533,TRANSFORMATION,
"3,012.48",Frontline Recruitment Ltd,Neighbourhoods,Waste & Fleet Management,Waste Collection,8403,Agency Staff,10/09/2019,Employee Related Expenditure,99737,NEIGHBOURHOODS,
"3,000.00",Leonard Design Limited,Transformation,Economic Regeneration,Economic Development,1887,Legal & Professional Services,27/08/2019,Supplies & Services,69868,TRANSFORMATION,
"2,970.75",Lex Leisure,Finance & Corporate Services,Democratic Services,Borough Council Elections,1021,Other Equipment/Materials,26/07/2019,Supplies & Services,97975,FINANCE & CORPORATE SERVICES,
"2,952.00",Nottinghamshire County Council,Communities,Planning Policy,Land Charges,1033,Other Services,05/09/2019,Supplies & Services,99293,COMMUNITIES,
"2,900.00",The Information Commissioner,Transformation,Legal,Legal Services,4701,Licences,10/07/2019,Supplies & Services,97622,FINANCE & CORPORATE SERVICES,
"2,886.00",Local Partnerships,Transformation,Property Services,Land Holdings,1884,Legal & Professional Services,19/07/2019,Supplies & Services,97832,TRANSFORMATION,
"2,835.00",Tridaro Ltd,Finance & Corporate Services,Financial Services,Financial Services,4705,Legal & Professional Services,10/07/2019,Supplies & Services,97934,FINANCE & CORPORATE SERVICES,
"2,765.00",Broxap Ltd,Transformation,Economic Regeneration,Economic Development,1887,Legal & Professional Services,22/07/2019,Supplies & Services,97951,TRANSFORMATION,
"2,760.59",Royal Mail Group Ltd,Transformation,Bsu,Central Mail,4871,Postages,21/08/2019,Supplies & Services,98755,TRANSFORMATION,
"2,758.33",Halfords Ltd,Assets,Current Assets,Cycle To Work Scheme,6228,Balance Sheet Advances,03/07/2019,Balance Sheet Advances,97417,FINANCE & CORPORATE SERVICES,
"2,640.96",Brian Cooper Architect,Capital Expenditure,Neighbourhoods,Discretionary Top-Ups Dfgs,0333,Grants,26/07/2019,Supplies & Services,98504,CAPITAL,
"2,561.87",Toot Hill School,Neighbourhoods,Leisure Contracts & Car Parks,Leisure Management Contract,1795,Gas,02/08/2019,Premises Related Expenditure,98503,FINANCE & CORPORATE SERVICES,
"2,548.00",East Midlands Chamber,Transformation,Economic Regeneration,Economic Development,1887,Projects & Activities,19/08/2019,Supplies & Services,99086,TRANSFORMATION,
"2,535.07",Streetwise Environmental Ltd,Neighbourhoods,Waste & Fleet Management,Waste Collection,8403,Contractors-Supplies & Servs,17/09/2019,Supplies & Services,99792,NEIGHBOURHOODS,
"2,526.28",Mocha Furniture Ltd,Finance & Corporate Services,Emt,Executive Management Team,4721,Other Equipment/Materials,02/08/2019,Supplies & Services,98699,FINANCE & CORPORATE SERVICES,
"2,500.00",Blade Runners Commercial Ltd,Transformation,Property Services,The Point,1886,Contract Cleaning,28/08/2019,Premises Related Expenditure,98677,TRANSFORMATION,
"2,500.00",Engineering Services Partnership Ltd,Capital Expenditure,Transformation & Innovation,Abbey Road Redevelopment,0312,Legal & Professional Services,19/09/2019,Supplies & Services,99803,CAPITAL,
"2,500.00",Exeid,Capital Expenditure,Transformation & Innovation,Bingham Leisure Hub,0314,Legal & Professional Services,25/09/2019,Supplies & Services,100173,CAPITAL,
"2,500.00",Inform Cpi Ltd,Finance & Corporate Services,Revenues & Benefits,Nndr,1038,Legal & Professional Services,03/07/2019,Supplies & Services,97843,FINANCE & CORPORATE SERVICES,
"2,444.62",Joe'S (Uk) Ltd,Transformation,Property Services,The Point,1886,Responsive Works - Buildings,30/09/2019,Premises Related Expenditure,99793,TRANSFORMATION,
"2,430.00",Ep Consulting Building Services Engineers,Capital Expenditure,Neighbourhoods,Clc Pool Ventilation,0343,Legal & Professional Services,02/09/2019,Supplies & Services,99381,CAPITAL,
"2,404.40",A.T Alarms,Capital Expenditure,Transformation & Innovation,Bingham Leisure Hub,0314,Contractors-Third Party,10/09/2019,Third Party Payments,99288,CAPITAL,
"2,400.00",Inform Cpi Ltd,Finance & Corporate Services,Revenues & Benefits,Nndr,1038,Legal & Professional Services,03/07/2019,Supplies & Services,97844,FINANCE & CORPORATE SERVICES,
"2,400.00",Maltby & Company,Communities,Community Development,Bridgford Park,8927,Responsive Works - Buildings,19/08/2019,Premises Related Expenditure,98876,COMMUNITIES,
"2,396.00",Lift Seat Limited,Capital Expenditure,Neighbourhoods,Disabled Facilities Grant,0332,Grants,22/07/2019,Supplies & Services,98370,CAPITAL,
"2,392.00",Gedling Borough Council,Finance & Corporate Services,Ict,It Rechargeable Costs,4722,Maintenance Contracts - S&S,05/09/2019,Supplies & Services,99339,TRANSFORMATION,
"2,385.00",Phoenix Safe Company Limited,Capital Expenditure,Neighbourhoods,Arena Development,0415,Computer Hardware,17/09/2019,Supplies & Services,99571,CAPITAL,
"2,365.00",Thomson Reuters,Transformation,Legal,Legal Services,4701,Books & Publications,30/07/2019,Supplies & Services,98606,FINANCE & CORPORATE SERVICES,
"2,346.17",Lex Leisure,Assets,Current Assets,European Election,7102,Other Equipment/Materials,26/07/2019,Supplies & Services,97771,FINANCE & CORPORATE SERVICES,
"2,320.00",Greater Nottingham Lift Company Limited,Transformation,Economic Regeneration,Cotgrave Precinct,1885,Other Miscellaneous Expenses,27/08/2019,Supplies & Services,63441,TRANSFORMATION,
"2,316.92",Royal Mail Group Ltd,Transformation,Bsu,Central Mail,4871,Postages,17/09/2019,Supplies & Services,99520,TRANSFORMATION,
"2,279.00",Attenborough Industrial Doors,Transformation,Property Services,Colliers Ph 2,1892,Responsive Works - Buildings,10/07/2019,Premises Related Expenditure,97598,TRANSFORMATION,
"2,250.00",Cp Viability Ltd,Communities,Planning & Growth,Development Control,1161,Legal & Professional Services,19/09/2019,Supplies & Services,99774,COMMUNITIES,
"2,233.19",Yu Energy,Transformation,Property Services,Bridgford Hall,1883,Gas,19/08/2019,Premises Related Expenditure,95245,TRANSFORMATION,
"2,231.15",A.T Alarms,Capital Expenditure,Transformation & Innovation,Bingham Leisure Hub,0314,Contractors-Third Party,10/09/2019,Third Party Payments,99286,CAPITAL,
"2,208.35",Severn Trent Water,Neighbourhoods,Waste & Fleet Management,Abbey Road Depot,4001,Sewerage & Environmental,21/08/2019,Premises Related Expenditure,99019,NEIGHBOURHOODS,
"2,205.00",Ludlow Hill Mot Centre,Neighbourhoods,Environmental Health,Hackney Carriage/Private Hire,1031,Contractors-Transport,19/09/2019,Transport Related Expenditure,99807,NEIGHBOURHOODS,
"2,199.45",Broxap Ltd,Transformation,Economic Regeneration,Economic Development,1887,Legal & Professional Services,10/07/2019,Supplies & Services,97778,TRANSFORMATION,
"2,132.50",Instep,Transformation,Economic Regeneration,Economic Development,1887,Grants,22/07/2019,Supplies & Services,98239,TRANSFORMATION,
"2,115.00",Ludlow Hill Mot Centre,Neighbourhoods,Environmental Health,Hackney Carriage/Private Hire,1031,Contractors-Transport,19/09/2019,Transport Related Expenditure,99806,NEIGHBOURHOODS,
"2,072.00",Ashley Kate Hr Ltd,Transformation,Human Resources,Human Resources,4709,Employee Advertising,28/08/2019,Employee Related Expenditure,99492,TRANSFORMATION,
"2,065.77",Broxtowe Borough Council,Neighbourhoods,Leisure Contracts & Car Parks,Car Parks,1900,Other Equipment/Materials,19/08/2019,Supplies & Services,99121,FINANCE & CORPORATE SERVICES,
"2,062.00",Mk Door Systems Ltd T/A Style Midlands,Transformation,Property Services,Arena Civic Centre,4718,Service Maintenance Contracts,10/09/2019,Premises Related Expenditure,99596,TRANSFORMATION,
"2,050.00",Inform Cpi Ltd,Finance & Corporate Services,Revenues & Benefits,Nndr,1038,Legal & Professional Services,03/07/2019,Supplies & Services,97842,FINANCE & CORPORATE SERVICES,
"2,032.18",Nsl Limited,Neighbourhoods,Leisure Contracts & Car Parks,Car Parks,1900,Legal & Professional Services,17/09/2019,Supplies & Services,99635,FINANCE & CORPORATE SERVICES,
"2,028.19",Service Level Management Ltd,Transformation,Bsu,Central Mail,4871,Postages,03/07/2019,Supplies & Services,97199,TRANSFORMATION,
"2,027.36",Severn Trent Water,Neighbourhoods,Waste & Fleet Management,Abbey Road Depot,4001,Sewerage & Environmental,26/07/2019,Premises Related Expenditure,98227,NEIGHBOURHOODS,
"2,020.00",Terminal Four,Capital Expenditure,Finance & Corporate,Technical Infrastructure,0603,Computer Hardware,30/09/2019,Supplies & Services,100037,CAPITAL,
"2,000.00",Bentley Project Management,Capital Expenditure,Transformation & Innovation,Cotgrave Masterplan,0303,Legal & Professional Services,16/07/2019,Supplies & Services,98013,CAPITAL,
"2,000.00",Inform Cpi Ltd,Finance & Corporate Services,Revenues & Benefits,Council Tax,1045,Legal & Professional Services,19/09/2019,Supplies & Services,99924,FINANCE & CORPORATE SERVICES,
"2,000.00",Lagom Associates Ltd,Finance & Corporate Services,Financial Services,Financial Services,4705,Legal & Professional Services,05/09/2019,Supplies & Services,99480,FINANCE & CORPORATE SERVICES,
"2,000.00",Rushcliffe Business Partnership,Communities,Community Development,Community Development,1581,Grants,12/07/2019,Supplies & Services,97819,COMMUNITIES,
"1,998.00",Attenborough Industrial Doors,Capital Expenditure,Transformation & Innovation,Cotgrave Employment Land,0371,Contractors-Third Party,10/07/2019,Third Party Payments,97598,CAPITAL,
"1,995.00",M J Saunders Computer Services Ltd,Capital Expenditure,Finance & Corporate,Ict Replacement Programme,0592,Computer Hardware,17/09/2019,Supplies & Services,99750,CAPITAL,
"1,945.67",Maltby & Company,Capital Expenditure,Transformation & Innovation,Bridgford Park Public Toilets,0355,Contractors-Third Party,22/07/2019,Third Party Payments,97959,CAPITAL,
"1,900.04",Service Level Management Ltd,Transformation,Bsu,Central Mail,4871,Postages,03/07/2019,Supplies & Services,97201,TRANSFORMATION,
"1,884.02",Nsl Limited,Neighbourhoods,Leisure Contracts & Car Parks,Car Parks,1900,Maintenance Contracts - S&S,19/08/2019,Supplies & Services,98709,FINANCE & CORPORATE SERVICES,
"1,883.31",Service Level Management Ltd,Transformation,Bsu,Central Mail,4871,Postages,03/07/2019,Supplies & Services,97200,TRANSFORMATION,
"1,875.00",Bsp Consulting,Capital Expenditure,Transformation & Innovation,Colliers Way Industrial Units,0368,Contractors-Third Party,10/09/2019,Third Party Payments,97860,CAPITAL,
"1,872.00",Ep Consulting Building Services Engineers,Capital Expenditure,Neighbourhoods,Clc Pool Ventilation,0343,Responsive Works - Buildings,27/08/2019,Premises Related Expenditure,98762,CAPITAL,
"1,845.18",Upgrade Options Limited,Capital Expenditure,Finance & Corporate,Ict Replacement Programme,0592,Computer Hardware,19/08/2019,Supplies & Services,98829,CAPITAL,
"1,845.00",Bsp Consulting,Capital Expenditure,Transformation & Innovation,Colliers Way Industrial Units,0368,Contractors-Third Party,19/07/2019,Third Party Payments,98008,CAPITAL,
"1,817.00",Hmrc,Finance & Corporate Services,Financial Services,Apprenticeship Levy,1043,Other Services,27/08/2019,Supplies & Services,99374,FINANCE & CORPORATE SERVICES,
"1,810.00",Hmrc,Finance & Corporate Services,Financial Services,Apprenticeship Levy,1043,Other Services,26/07/2019,Supplies & Services,98496,FINANCE & CORPORATE SERVICES,
"1,800.00",Bentley Project Management,Capital Expenditure,Transformation & Innovation,Cotgrave Phase 2,0387,Legal & Professional Services,19/08/2019,Supplies & Services,98973,CAPITAL,
"1,788.57",Royal Mail Group Ltd,Finance & Corporate Services,Democratic Services,Borough Council Elections,1021,Postages,01/07/2019,Supplies & Services,97338,FINANCE & CORPORATE SERVICES,
"1,760.00",Westcotes House Ltd,Neighbourhoods,Strategic Housing,Homeless B&B,1110,Housing-Emergency Accommodn,02/08/2019,Supplies & Services,98673,NEIGHBOURHOODS,
"1,745.94",Nsl Limited,Neighbourhoods,Leisure Contracts & Car Parks,Car Parks,1900,Maintenance Contracts - S&S,16/07/2019,Supplies & Services,97768,FINANCE & CORPORATE SERVICES,
"1,734.73",Edf Energy,Neighbourhoods,Leisure Contracts & Car Parks,Car Parks,1900,Electricity,19/08/2019,Premises Related Expenditure,98430,FINANCE & CORPORATE SERVICES,
"1,680.00",Bsp Consulting,Capital Expenditure,Transformation & Innovation,Cotgrave Masterplan,0303,Legal & Professional Services,12/07/2019,Supplies & Services,97789,CAPITAL,
"1,668.24",Hp Inc Uk Limited,Finance & Corporate Services,Ict,It Rechargeable Costs,4722,Other Maintenance,27/08/2019,Supplies & Services,94963,TRANSFORMATION,
"1,656.52",Severn Trent Water,Neighbourhoods,Strategic Housing,Hostel Hound Lodge,1111,Water Charges,12/07/2019,Premises Related Expenditure,97586,NEIGHBOURHOODS,
"1,655.20",Service Level Management Ltd,Transformation,Bsu,Central Mail,4871,Postages,03/07/2019,Supplies & Services,97196,TRANSFORMATION,
"1,654.54",The Saville Group Ltd,Capital Expenditure,Finance & Corporate,Ict Replacement Programme,0592,Computer Hardware,10/07/2019,Supplies & Services,97654,CAPITAL,
"1,601.28",Carrington West Limited,Finance & Corporate Services,Financial Services,Suspense No Code,5224,Returned Creditors,10/07/2019,Returned Creditors,98039,FINANCE & CORPORATE SERVICES,
"1,572.00",Bsp Consulting,Capital Expenditure,Transformation & Innovation,Cotgrave Phase 2,0387,Legal & Professional Services,09/08/2019,Supplies & Services,98694,CAPITAL,
"1,572.00",Bsp Consulting,Capital Expenditure,Transformation & Innovation,Cotgrave Phase 2,0387,Legal & Professional Services,10/09/2019,Supplies & Services,99527,CAPITAL,
"1,560.00",Obsidian Geo-Consulting Limited,Capital Expenditure,Transformation & Innovation,Abbey Road Redevelopment,0312,Contractors-Third Party,02/08/2019,Third Party Payments,98315,CAPITAL,
"1,536.00",Event Equipment Hire,Communities,Community Development,Arts,1550,Projects & Activities,09/08/2019,Supplies & Services,98891,COMMUNITIES,
"1,536.00",Event Equipment Hire,Communities,Community Development,Arts,1550,Projects & Activities,19/08/2019,Supplies & Services,99108,COMMUNITIES,
"1,516.85",Print Image Network Ltd,Finance & Corporate Services,Democratic Services,Electoral Registration,1026,External Printing,19/08/2019,Supplies & Services,98864,FINANCE & CORPORATE SERVICES,
"1,513.75",Prestige Air Technology Ltd,Transformation,Property Services,Arena Civic Centre,4718,Service Maintenance Contracts,01/07/2019,Premises Related Expenditure,97412,TRANSFORMATION,
"1,511.59",Service Level Management Ltd,Transformation,Bsu,Central Mail,4871,Postages,30/07/2019,Supplies & Services,97941,TRANSFORMATION,
"1,500.00",Bentley Project Management,Capital Expenditure,Transformation & Innovation,Cotgrave Phase 2,0387,Legal & Professional Services,16/07/2019,Supplies & Services,98014,CAPITAL,
"1,500.00",Bentley Project Management,Capital Expenditure,Transformation & Innovation,Cotgrave Phase 2,0387,Legal & Professional Services,19/08/2019,Supplies & Services,98972,CAPITAL,
"1,500.00",Bentley Project Management,Capital Expenditure,Transformation & Innovation,Cotgrave Phase 2,0387,Legal & Professional Services,17/09/2019,Supplies & Services,99898,CAPITAL,
"1,500.00",Ljd Landscape And Paving,Capital Expenditure,Neighbourhoods,Disabled Facilities Grant,0332,Grants,17/07/2019,Supplies & Services,98249,CAPITAL,
"1,500.00",Pinders,Transformation,Property Services,Land Holdings,1884,Legal & Professional Services,12/07/2019,Supplies & Services,97811,TRANSFORMATION,
"1,499.00",Obam Lift Services Ltd,Capital Expenditure,Neighbourhoods,Disabled Facilities Grant,0332,Grants,10/09/2019,Supplies & Services,99660,CAPITAL,
"1,484.14",Telefonica Uk Limited,Finance & Corporate Services,Ict,Telephones,4870,Mobiles,09/08/2019,Supplies & Services,98363,TRANSFORMATION,
"1,455.50",Rushcliffe Fencing Ltd,Transformation,Property Services,Colliers Ph 2,1892,Responsive Works - Buildings,22/07/2019,Premises Related Expenditure,98011,TRANSFORMATION,
"1,449.85",Severn Trent Water,Capital Expenditure,Transformation & Innovation,Cotgrave Phase 2,0387,Legal & Professional Services,05/09/2019,Supplies & Services,99634,CAPITAL,
"1,430.00",Carrington West Limited,Communities,Planning & Growth,Development Control,1161,Agency Staff,21/08/2019,Employee Related Expenditure,99043,COMMUNITIES,
"1,430.00",Carrington West Limited,Communities,Planning & Growth,Development Control,1161,Agency Staff,25/09/2019,Employee Related Expenditure,99746,COMMUNITIES,
"1,427.63",Park Avenue,Communities,Planning & Growth,Development Control,1161,Agency Staff,27/08/2019,Employee Related Expenditure,99350,COMMUNITIES,
"1,425.80",Park Avenue,Communities,Planning & Growth,Development Control,1161,Agency Staff,19/08/2019,Employee Related Expenditure,98373,COMMUNITIES,
"1,424.45",Park Avenue,Communities,Planning & Growth,Development Control,1161,Agency Staff,19/08/2019,Employee Related Expenditure,99020,COMMUNITIES,
"1,420.00",Cibes Lift Uk,Transformation,Property Services,New Offices - Cotgrave,4798,Service Maintenance Contracts,28/08/2019,Premises Related Expenditure,99008,TRANSFORMATION,
"1,419.95",Park Avenue,Communities,Planning & Growth,Development Control,1161,Agency Staff,25/09/2019,Employee Related Expenditure,100127,COMMUNITIES,
"1,419.50",Park Avenue,Communities,Planning & Growth,Development Control,1161,Agency Staff,27/08/2019,Employee Related Expenditure,99101,COMMUNITIES,
"1,413.75",Telefonica Uk Limited,Finance & Corporate Services,Ict,Telephones,4870,Mobiles,10/09/2019,Supplies & Services,99130,TRANSFORMATION,
"1,412.87",Royal Mail Group Ltd,Transformation,Bsu,Central Mail,4871,Postages,26/07/2019,Supplies & Services,98026,TRANSFORMATION,
"1,406.25",House Into Home,Liabilities,Long Term Liabilities,Leasehold Deposits,6623,Balance Sheet Exp In The Year,12/07/2019,Balance Sheet Exp In The Year,98158,COMMUNITIES,
"1,406.00",Park Avenue,Communities,Planning & Growth,Development Control,1161,Agency Staff,19/08/2019,Employee Related Expenditure,98591,COMMUNITIES,
"1,406.00",Park Avenue,Communities,Planning & Growth,Development Control,1161,Agency Staff,19/08/2019,Employee Related Expenditure,99026,COMMUNITIES,
"1,406.00",Park Avenue,Communities,Planning & Growth,Development Control,1161,Agency Staff,10/09/2019,Employee Related Expenditure,99554,COMMUNITIES,
"1,395.00",Ludlow Hill Mot Centre,Neighbourhoods,Environmental Health,Hackney Carriage/Private Hire,1031,Contractors-Transport,19/09/2019,Transport Related Expenditure,99808,NEIGHBOURHOODS,
"1,392.61",Royal Mail Group Ltd,Transformation,Bsu,Central Mail,4871,Postages,09/08/2019,Supplies & Services,98656,TRANSFORMATION,
"1,388.75",Carrington West Limited,Communities,Planning & Growth,Development Control,1161,Agency Staff,22/07/2019,Employee Related Expenditure,98170,COMMUNITIES,
"1,380.00",Lex Leisure,Transformation,Bsu,Business Support Unit,4805,Legal & Professional Services,19/08/2019,Supplies & Services,98485,TRANSFORMATION,
"1,375.00",Carrington West Limited,Communities,Planning & Growth,Development Control,1161,Agency Staff,02/08/2019,Employee Related Expenditure,98380,COMMUNITIES,
"1,375.00",Carrington West Limited,Communities,Planning & Growth,Development Control,1161,Agency Staff,08/08/2019,Employee Related Expenditure,98592,COMMUNITIES,
"1,375.00",Carrington West Limited,Communities,Planning & Growth,Development Control,1161,Agency Staff,19/08/2019,Employee Related Expenditure,99035,COMMUNITIES,
"1,375.00",Carrington West Limited,Communities,Planning & Growth,Development Control,1161,Agency Staff,05/09/2019,Employee Related Expenditure,99109,COMMUNITIES,
"1,357.83",Telefonica Uk Limited,Finance & Corporate Services,Ict,Telephones,4870,Mobiles,12/07/2019,Supplies & Services,97420,TRANSFORMATION,
"1,353.63",Print Image Network Ltd,Finance & Corporate Services,Democratic Services,Electoral Registration,1026,External Printing,19/09/2019,Supplies & Services,99948,FINANCE & CORPORATE SERVICES,
"1,347.50",Carrington West Limited,Communities,Planning & Growth,Development Control,1161,Agency Staff,26/07/2019,Employee Related Expenditure,98169,COMMUNITIES,
"1,344.00",Phoenix Software,Finance & Corporate Services,Ict,It Rechargeable Costs,4722,Maintenance Contracts - S&S,10/07/2019,Supplies & Services,97601,TRANSFORMATION,
"1,343.00",Blitz Drainage Limited,Capital Expenditure,Transformation & Innovation,Abbey Road Redevelopment,0312,Contractors-Third Party,27/08/2019,Third Party Payments,99076,CAPITAL,
"1,341.50",Jne Security Ltd,Neighbourhoods,Environmental Health,Community Safety,1598,Projects & Activities,26/07/2019,Supplies & Services,98040,NEIGHBOURHOODS,
"1,320.00",Carrington West Limited,Communities,Planning & Growth,Development Control,1161,Agency Staff,01/07/2019,Employee Related Expenditure,97397,COMMUNITIES,
"1,314.48",Park Avenue,Communities,Planning & Growth,Development Control,1161,Agency Staff,25/09/2019,Employee Related Expenditure,100069,COMMUNITIES,
"1,302.00",Nottinghamshire County Council,Communities,Planning Policy,Land Charges,1033,Other Services,05/09/2019,Supplies & Services,99294,COMMUNITIES,
"1,300.00",York Archaeological Trust,Capital Expenditure,Transformation & Innovation,Cotgrave Phase 2,0387,Legal & Professional Services,19/08/2019,Supplies & Services,98731,CAPITAL,
"1,295.00",Wallgate Limited,Transformation,Property Services,Parish Run Pub Conveniences,1072,Service Maintenance Contracts,17/09/2019,Premises Related Expenditure,99600,TRANSFORMATION,
"1,290.00",Service Level Management Ltd,Transformation,Bsu,Central Mail,4871,Postages,02/09/2019,Supplies & Services,98969,TRANSFORMATION,
"1,277.10",Ppl Prs Ltd,Communities,Community Development,Arts,1550,Licences,02/09/2019,Supplies & Services,99575,COMMUNITIES,
"1,265.00",Carrington West Limited,Communities,Planning & Growth,Development Control,1161,Agency Staff,10/07/2019,Employee Related Expenditure,97713,COMMUNITIES,
"1,262.96",Nottingham City Council,Neighbourhoods,Waste & Fleet Management,Eastcroft Depot,4002,Olas - Nottm City Council,21/08/2019,Third Party Payments,99254,NEIGHBOURHOODS,
"1,260.00",Lex Leisure,Transformation,Bsu,Business Support Unit,4805,Legal & Professional Services,12/07/2019,Supplies & Services,96862,TRANSFORMATION,
"1,260.00",Lex Leisure,Transformation,Bsu,Business Support Unit,4805,Legal & Professional Services,17/09/2019,Supplies & Services,99577,TRANSFORMATION,
"1,248.00",Parkwood Leisure Ltd,Neighbourhoods,Leisure Contracts & Car Parks,Leisure Management Contract,1795,D.B.S Checks - Employees,28/08/2019,Employee Related Expenditure,99090,FINANCE & CORPORATE SERVICES,
"1,236.00",Event Equipment Hire,Communities,Community Development,Arts,1550,Projects & Activities,21/08/2019,Supplies & Services,99116,COMMUNITIES,
"1,225.00",M J Saunders Computer Services Ltd,Capital Expenditure,Finance & Corporate,Ict Replacement Programme,0592,Computer Hardware,19/08/2019,Supplies & Services,98733,CAPITAL,
"1,222.97",Royal Mail Group Ltd,Transformation,Bsu,Central Mail,4871,Postages,12/07/2019,Supplies & Services,97496,TRANSFORMATION,
"1,220.00",Stage Connections Ltd,Communities,Community Development,Arts,1550,Projects & Activities,30/09/2019,Supplies & Services,99742,COMMUNITIES,
"1,220.00",Stage Connections Ltd,Communities,Community Development,Arts,1550,Projects & Activities,30/09/2019,Supplies & Services,99743,COMMUNITIES,
"1,220.00",Stage Connections Ltd,Communities,Community Development,Arts,1550,Projects & Activities,30/09/2019,Supplies & Services,99744,COMMUNITIES,
"1,220.00",Stage Connections Ltd,Communities,Community Development,Arts,1550,Projects & Activities,30/09/2019,Supplies & Services,99745,COMMUNITIES,
"1,210.00",Westcotes House Ltd,Neighbourhoods,Strategic Housing,Homeless B&B,1110,Housing-Emergency Accommodn,10/07/2019,Supplies & Services,97449,NEIGHBOURHOODS,
"1,200.00",Lex Leisure,Transformation,Bsu,Business Support Unit,4805,Legal & Professional Services,19/08/2019,Supplies & Services,98486,TRANSFORMATION,
"1,200.00",Local Government Association,Transformation,Human Resources,Corporate Training,4893,Training Expenses,17/09/2019,Employee Related Expenditure,99534,TRANSFORMATION,
"1,200.00",Mascot Management Ltd,Capital Expenditure,Transformation & Innovation,Cotgrave Phase 2,0387,Legal & Professional Services,16/07/2019,Supplies & Services,98010,CAPITAL,
"1,179.27",Royal Mail Group Ltd,Transformation,Bsu,Central Mail,4871,Postages,17/09/2019,Supplies & Services,99659,TRANSFORMATION,
"1,178.00",Park Avenue,Communities,Planning & Growth,Development Control,1161,Agency Staff,10/09/2019,Employee Related Expenditure,99759,COMMUNITIES,
"1,174.00",Clearway (Midlands) Ltd,Neighbourhoods,Leisure Contracts & Car Parks,Car Parks,1900,Responsive Works - Buildings,10/07/2019,Premises Related Expenditure,98018,FINANCE & CORPORATE SERVICES,
"1,170.00",Nottinghamshire County Council,Communities,Planning Policy,Land Charges,1033,Other Services,10/07/2019,Supplies & Services,97043,COMMUNITIES,
"1,163.26",Aumas Limited,Capital Expenditure,Neighbourhoods,Disabled Facilities Grant,0332,Grants,17/09/2019,Supplies & Services,99603,CAPITAL,
"1,162.40",Park Avenue,Communities,Planning & Growth,Development Control,1161,Agency Staff,28/08/2019,Employee Related Expenditure,96193,COMMUNITIES,
"1,162.39",Nottingham City Council,Neighbourhoods,Waste & Fleet Management,Eastcroft Depot,4002,Olas - Nottm City Council,28/08/2019,Third Party Payments,99256,NEIGHBOURHOODS,
"1,160.03",Castle Water Limited,Neighbourhoods,Waste & Fleet Management,Abbey Road Depot,4001,Water Charges,19/07/2019,Premises Related Expenditure,98139,NEIGHBOURHOODS,
"1,137.00",Nuthall Electrical Services Ltd,Capital Expenditure,Neighbourhoods,Arena Development,0415,Responsive Works - Buildings,08/08/2019,Premises Related Expenditure,98827,CAPITAL,
"1,134.73",A.T Alarms,Capital Expenditure,Transformation & Innovation,Bingham Leisure Hub,0314,Contractors-Third Party,10/09/2019,Third Party Payments,99289,CAPITAL,
"1,125.00",Cipfa Business Limited,Transformation,Property Services,Property Services,4713,Subscriptions,30/09/2019,Supplies & Services,100240,TRANSFORMATION,
"1,125.00",Ludlow Hill Mot Centre,Neighbourhoods,Environmental Health,Hackney Carriage/Private Hire,1031,Contractors-Transport,19/07/2019,Transport Related Expenditure,98244,NEIGHBOURHOODS,
"1,116.66",Nottingham City Council,Neighbourhoods,Waste & Fleet Management,Eastcroft Depot,4002,Olas - Nottm City Council,10/09/2019,Third Party Payments,99748,NEIGHBOURHOODS,
"1,100.83",Co-Operative Funeral Care,Neighbourhoods,Environmental Health,Public Health,1127,Welfare Burials,17/09/2019,Supplies & Services,99643,NEIGHBOURHOODS,
"1,079.09",British Gas Business,Neighbourhoods,Waste & Fleet Management,Abbey Road Depot,4001,Electricity,22/07/2019,Premises Related Expenditure,97972,NEIGHBOURHOODS,
"1,075.00",Traffic Management Svs Ltd,Communities,Community Development,Arts,1550,Projects & Activities,02/08/2019,Supplies & Services,98321,COMMUNITIES,
"1,063.11",Reach Publishing Services Limited,Communities,Planning & Growth,Development Control,1161,Advertising,19/07/2019,Supplies & Services,98311,COMMUNITIES,
"1,057.13",Service Level Management Ltd,Transformation,Bsu,Central Mail,4871,Postages,02/09/2019,Supplies & Services,98967,TRANSFORMATION,
"1,051.43",Service Level Management Ltd,Transformation,Bsu,Central Mail,4871,Postages,02/09/2019,Supplies & Services,98966,TRANSFORMATION,
"1,050.00",York Archaeological Trust,Capital Expenditure,Transformation & Innovation,Cotgrave Masterplan,0303,Legal & Professional Services,19/08/2019,Supplies & Services,98750,CAPITAL,
"1,035.37",Royal Mail Group Ltd,Transformation,Bsu,Central Mail,4871,Postages,27/08/2019,Supplies & Services,99067,TRANSFORMATION,
"1,030.89",Service Level Management Ltd,Transformation,Bsu,Central Mail,4871,Postages,30/07/2019,Supplies & Services,97938,TRANSFORMATION,
"1,017.00",Medigold Health Consultancy Ltd,Transformation,Human Resources,Human Resources,4709,Occupational Health,22/07/2019,Employee Related Expenditure,98035,TRANSFORMATION,
"1,012.50",Heine Planning Consultancy,Communities,Planning & Growth,Development Control,1161,Legal & Professional Services,25/09/2019,Supplies & Services,100115,COMMUNITIES,
"1,007.00",Service Level Management Ltd,Transformation,Bsu,Central Mail,4871,Postages,02/09/2019,Supplies & Services,98964,TRANSFORMATION,
"1,006.14",Service Level Management Ltd,Transformation,Bsu,Central Mail,4871,Postages,03/07/2019,Supplies & Services,97197,TRANSFORMATION,
"1,000.00",Heb Chartered Surveyors,Transformation,Property Services,Land Holdings,1884,Legal & Professional Services,03/07/2019,Supplies & Services,97037,TRANSFORMATION,
"1,000.00",Matts Monitors Ltd,Neighbourhoods,Environmental Health,Pollution Control,1050,Other Equipment/Materials,26/07/2019,Supplies & Services,98012,NEIGHBOURHOODS,
"1,000.00",Midlands Rural Housing,Neighbourhoods,Strategic Housing,Housing Strategy,1146,Grants,27/08/2019,Supplies & Services,90417,NEIGHBOURHOODS,
"1,000.00",Midlands Rural Housing,Neighbourhoods,Strategic Housing,Housing Strategy,1146,Grants,30/09/2019,Supplies & Services,100257,NEIGHBOURHOODS,
"1,000.00",Nottinghamshire County Council,Communities,Community Development,Environmental Promotion,1590,Subscriptions,01/07/2019,Supplies & Services,97211,COMMUNITIES,
"1,000.00",Plant Magic,Communities,Community Development,Health Development,1058,Projects & Activities,05/09/2019,Supplies & Services,99489,COMMUNITIES,
"1,000.00",Plant Magic,Finance & Corporate Services,Financial Services,Suspense No Code,5224,Returned Creditors,30/09/2019,Returned Creditors,100054,FINANCE & CORPORATE SERVICES,
"1,000.00",Rural Retailers Ltd,Transformation,Economic Regeneration,Bingham Market Stalls,1880,Legal & Professional Services,10/09/2019,Supplies & Services,99820,TRANSFORMATION,
997.41,Nottingham City Council,Neighbourhoods,Waste & Fleet Management,Eastcroft Depot,4002,Olas - Nottm City Council,19/08/2019,Third Party Payments,98698,NEIGHBOURHOODS,
987.37,Service Level Management Ltd,Transformation,Bsu,Central Mail,4871,Postages,02/09/2019,Supplies & Services,98965,TRANSFORMATION,
986.00,Uk Property Rescue Ltd,Neighbourhoods,Environmental Health,Work In Default,1066,Fees & Charges - General,22/07/2019,Income,98378,NEIGHBOURHOODS,
978.13,Yu Energy,Transformation,Property Services,Bridgford Hall,1883,Gas,19/08/2019,Premises Related Expenditure,96071,TRANSFORMATION,
960.00,Wellbeing Clinic Ltd,Transformation,Human Resources,Human Resources,4709,Legal & Professional Services,26/07/2019,Supplies & Services,98501,TRANSFORMATION,
959.40,Central Fire Systems Ltd,Transformation,Property Services,The Point,1886,Responsive Works - Buildings,02/08/2019,Premises Related Expenditure,98374,TRANSFORMATION,
959.14,Adt Fire And Security Plc,Communities,Community Development,Rushcliffe Country Park,1375,Maintenance Contracts - S&S,19/08/2019,Supplies & Services,98706,COMMUNITIES,
957.11,Reach Publishing Services Limited,Communities,Planning & Growth,Development Control,1161,Advertising,19/08/2019,Supplies & Services,99077,COMMUNITIES,
956.35,British Gas Business,Neighbourhoods,Waste & Fleet Management,Abbey Road Depot,4001,Electricity,19/08/2019,Premises Related Expenditure,98981,NEIGHBOURHOODS,
953.36,Castle Water Limited,Neighbourhoods,Waste & Fleet Management,Abbey Road Depot,4001,Water Charges,19/07/2019,Premises Related Expenditure,98137,NEIGHBOURHOODS,
949.20,Reach Publishing Services Limited,Communities,Planning & Growth,Development Control,1161,Advertising,30/07/2019,Supplies & Services,98512,COMMUNITIES,
949.20,Reach Publishing Services Limited,Communities,Planning & Growth,Development Control,1161,Advertising,05/09/2019,Supplies & Services,99529,COMMUNITIES,
949.20,Reach Publishing Services Limited,Communities,Planning & Growth,Development Control,1161,Advertising,05/09/2019,Supplies & Services,99678,COMMUNITIES,
946.88,Electoral Reform Services,Finance & Corporate Services,Democratic Services,Electoral Registration,1026,External Printing,19/08/2019,Supplies & Services,98716,FINANCE & CORPORATE SERVICES,
946.38,Service Level Management Ltd,Transformation,Bsu,Central Mail,4871,Postages,30/07/2019,Supplies & Services,97939,TRANSFORMATION,
946.00,M.D.B Plumbing Nottm Ltd,Capital Expenditure,Neighbourhoods,Arena Development,0415,Responsive Works - Buildings,08/08/2019,Premises Related Expenditure,98674,CAPITAL,
938.00,Pedal Power People Company,Communities,Community Development,Sports Development,1593,Projects & Activities,25/09/2019,Supplies & Services,99800,COMMUNITIES,
933.76,British Gas Business,Neighbourhoods,Waste & Fleet Management,Abbey Road Depot,4001,Electricity,17/09/2019,Premises Related Expenditure,99248,NEIGHBOURHOODS,
928.24,Streetwise Environmental Ltd,Transformation,Economic Regeneration,Economic Development,1887,Legal & Professional Services,08/08/2019,Supplies & Services,98619,TRANSFORMATION,
927.28,British Gas Business,Communities,Community Development,Gresham,8950,Electricity,25/09/2019,Premises Related Expenditure,100056,COMMUNITIES,
923.99,Xerox (Uk) Limited,Finance & Corporate Services,Ict,Photocopiers,5017,Rental & Copy Charges,16/07/2019,Supplies & Services,97913,TRANSFORMATION,
920.00,Reach Publishing Services Limited,Communities,Planning & Growth,Development Control,1161,Advertising,19/08/2019,Supplies & Services,98886,COMMUNITIES,
910.77,British Gas Business,Communities,Community Development,Gresham,8950,Electricity,02/08/2019,Premises Related Expenditure,98325,COMMUNITIES,
906.20,Electoral Reform Services,Finance & Corporate Services,Democratic Services,Electoral Registration,1026,External Printing,17/09/2019,Supplies & Services,99602,FINANCE & CORPORATE SERVICES,
906.05,Reach Publishing Services Limited,Communities,Planning & Growth,Development Control,1161,Advertising,19/07/2019,Supplies & Services,98033,COMMUNITIES,
905.40,British Gas Business,Neighbourhoods,Waste & Fleet Management,Abbey Road Depot,4001,Electricity,22/07/2019,Premises Related Expenditure,98362,NEIGHBOURHOODS,
904.68,The South Wolds Academy And Sixth Form,Neighbourhoods,Leisure Contracts & Car Parks,Leisure Management Contract,1795,Electricity,17/09/2019,Premises Related Expenditure,99519,FINANCE & CORPORATE SERVICES,
900.00,Change Grow Live Services Limited,Finance & Corporate Services,Financial Services,Suspense No Code,5224,Returned Creditors,10/09/2019,Returned Creditors,99665,FINANCE & CORPORATE SERVICES,
900.00,Systemair Limited,Transformation,Property Services,Arena Civic Centre,4718,Service Maintenance Contracts,26/07/2019,Premises Related Expenditure,98161,TRANSFORMATION,
900.00,Wellbeing Clinic Ltd,Transformation,Human Resources,Human Resources,4709,Legal & Professional Services,03/07/2019,Supplies & Services,97798,TRANSFORMATION,
899.33,Park Avenue,Communities,Planning & Growth,Development Control,1161,Agency Staff,26/07/2019,Employee Related Expenditure,98237,COMMUNITIES,
891.96,British Gas Business,Neighbourhoods,Waste & Fleet Management,Abbey Road Depot,4001,Electricity,19/09/2019,Premises Related Expenditure,100051,NEIGHBOURHOODS,
882.08,Vip System Limited,Neighbourhoods,Environmental Health,Hackney Carriage/Private Hire,1031,Other Equipment/Materials,21/08/2019,Supplies & Services,98976,NEIGHBOURHOODS,
879.56,Service Level Management Ltd,Transformation,Bsu,Central Mail,4871,Postages,30/07/2019,Supplies & Services,97940,TRANSFORMATION,
877.50,Haymarket Media Group,Communities,Planning & Growth,Development Control,1161,Subscriptions,17/09/2019,Supplies & Services,99285,COMMUNITIES,
877.50,Haymarket Media Group,Communities,Planning Policy,Development Plans,1232,Subscriptions,17/09/2019,Supplies & Services,99285,COMMUNITIES,
870.87,Daisy Communications Ltd,Finance & Corporate Services,Ict,Telephones,4870,Telephone Rental,28/08/2019,Supplies & Services,97982,TRANSFORMATION,
863.25,Senior Internet Ltd,Finance & Corporate Services,Ict,It Rechargeable Costs,4722,Maintenance Contracts - S&S,30/09/2019,Supplies & Services,99939,TRANSFORMATION,
859.25,The South Wolds Academy And Sixth Form,Neighbourhoods,Leisure Contracts & Car Parks,Leisure Management Contract,1795,Electricity,25/09/2019,Premises Related Expenditure,99763,FINANCE & CORPORATE SERVICES,
850.99,The South Wolds Academy And Sixth Form,Neighbourhoods,Leisure Contracts & Car Parks,Leisure Management Contract,1795,Electricity,02/08/2019,Premises Related Expenditure,98371,FINANCE & CORPORATE SERVICES,
835.47,British Gas Business,Communities,Community Development,Gresham,8950,Electricity,05/09/2019,Premises Related Expenditure,99139,COMMUNITIES,
825.00,Solace Group Ltd,Finance & Corporate Services,Emt,Executive Management Team,4721,Conferences - Employees,19/08/2019,Supplies & Services,99063,FINANCE & CORPORATE SERVICES,
819.00,Althams,Neighbourhoods,Environmental Health,Community Safety,1598,Projects & Activities,19/08/2019,Supplies & Services,99031,NEIGHBOURHOODS,
817.00,Hills Decorators Ltd,Capital Expenditure,Transformation & Innovation,Cotgrave Masterplan,0303,Legal & Professional Services,20/09/2019,Supplies & Services,99899,CAPITAL,
816.02,Dell Corporation Ltd,Finance & Corporate Services,Ict,It Rechargeable Costs,4722,Software,19/08/2019,Supplies & Services,98863,TRANSFORMATION,
807.49,Dkn Decorators Ltd,Transformation,Property Services,Arena Civic Centre,4718,Responsive Works - Buildings,19/07/2019,Premises Related Expenditure,97825,TRANSFORMATION,
802.20,Eon,Transformation,Property Services,New Offices - Cotgrave,4798,Electricity,19/07/2019,Premises Related Expenditure,98171,TRANSFORMATION,
800.00,Rural Retailers Ltd,Transformation,Economic Regeneration,Bingham Market Stalls,1880,Legal & Professional Services,10/07/2019,Supplies & Services,98017,TRANSFORMATION,
800.00,Rural Retailers Ltd,Transformation,Economic Regeneration,Bingham Market Stalls,1880,Legal & Professional Services,10/09/2019,Supplies & Services,99127,TRANSFORMATION,
800.00,South Notts Fabrications Ltd,Transformation,Property Services,Bridgford Hall,1883,Responsive Works - Buildings,10/09/2019,Premises Related Expenditure,99353,TRANSFORMATION,
795.62,Western Power Distribution (East Mids),Capital Expenditure,Transformation & Innovation,Cotgrave Masterplan,0303,Legal & Professional Services,30/07/2019,Supplies & Services,98507,CAPITAL,
795.00,Tip Europe Limited,Neighbourhoods,Waste & Fleet Management,Garage,8700,Contractors-Transport,19/07/2019,Transport Related Expenditure,97820,NEIGHBOURHOODS,
789.00,The Knowledge Academy Limited,Transformation,Human Resources,Human Resources,4709,Training Expenses,27/08/2019,Employee Related Expenditure,80087,TRANSFORMATION,
780.00,Inform Cpi Ltd,Finance & Corporate Services,Revenues & Benefits,Nndr,1038,Legal & Professional Services,03/07/2019,Supplies & Services,97841,FINANCE & CORPORATE SERVICES,
780.00,Wellbeing Clinic Ltd,Transformation,Human Resources,Human Resources,4709,Legal & Professional Services,10/09/2019,Supplies & Services,99817,TRANSFORMATION,
779.87,Reach Publishing Services Limited,Communities,Planning & Growth,Development Control,1161,Advertising,08/08/2019,Supplies & Services,98701,COMMUNITIES,
776.96,Vip System Limited,Neighbourhoods,Environmental Health,Hackney Carriage/Private Hire,1031,Other Equipment/Materials,19/07/2019,Supplies & Services,97996,NEIGHBOURHOODS,
775.18,Reach Publishing Services Limited,Communities,Planning & Growth,Development Control,1161,Advertising,27/08/2019,Supplies & Services,99295,COMMUNITIES,
775.00,Patco Events Ltd,Communities,Community Development,Arts,1550,Projects & Activities,27/08/2019,Supplies & Services,99050,COMMUNITIES,
759.36,Reach Publishing Services Limited,Communities,Planning & Growth,Development Control,1161,Advertising,10/07/2019,Supplies & Services,97854,COMMUNITIES,
759.36,Reach Publishing Services Limited,Communities,Planning & Growth,Development Control,1161,Advertising,05/09/2019,Supplies & Services,99530,COMMUNITIES,
759.00,Buckles Solicitors,Transformation,Property Services,Land Holdings,1884,Legal & Professional Services,10/07/2019,Supplies & Services,97702,TRANSFORMATION,
752.14,Dsa Environment & Design Limited,Capital Expenditure,Transformation & Innovation,Multi Service Centre,0348,Legal & Professional Services,17/09/2019,Supplies & Services,99547,CAPITAL,
750.00,Bentley Project Management,Capital Expenditure,Transformation & Innovation,Cotgrave Masterplan,0303,Legal & Professional Services,17/09/2019,Supplies & Services,99897,CAPITAL,
750.00,Change Grow Live Services Limited,Communities,Community Development,Health Development,1058,Grants,19/08/2019,Supplies & Services,98705,COMMUNITIES,
750.00,Gotham Nature Reserve Trust,Communities,Community Development,Environmental Promotion,1590,Grants,27/08/2019,Supplies & Services,99004,COMMUNITIES,
750.00,Nottingham Asian Arts Council,Communities,Community Development,Sports Development,1593,Projects & Activities,10/07/2019,Supplies & Services,97846,COMMUNITIES,
750.00,St John'S Chambers,Communities,Planning & Growth,Development Control,1161,Legal & Professional Services,26/07/2019,Supplies & Services,98128,COMMUNITIES,
749.17,Lex Leisure,Finance & Corporate Services,Democratic Services,Borough Council Elections,1021,Hospitality,26/07/2019,Supplies & Services,97975,FINANCE & CORPORATE SERVICES,
746.16,Vip System Limited,Neighbourhoods,Environmental Health,Hackney Carriage/Private Hire,1031,Other Equipment/Materials,02/08/2019,Supplies & Services,98482,NEIGHBOURHOODS,
745.16,Xerox (Uk) Limited,Finance & Corporate Services,Ict,Photocopiers,5017,Rental & Copy Charges,16/07/2019,Supplies & Services,97914,TRANSFORMATION,
740.00,The Marquee Company Limited,Communities,Community Development,Arts,1550,Projects & Activities,19/08/2019,Supplies & Services,99103,COMMUNITIES,
740.00,Wallgate Limited,Communities,Community Development,Lutterell Hall,8990,Service Maintenance Contracts,17/09/2019,Premises Related Expenditure,99600,COMMUNITIES,
736.66,Hotpots Cafe,Capital Expenditure,Transformation & Innovation,Cotgrave Masterplan,0303,Legal & Professional Services,08/08/2019,Supplies & Services,98717,CAPITAL,
736.66,Hotpots Cafe,Capital Expenditure,Transformation & Innovation,Cotgrave Masterplan,0303,Legal & Professional Services,21/08/2019,Supplies & Services,99279,CAPITAL,
728.62,Ccs Media,Finance & Corporate Services,Ict,It Rechargeable Costs,4722,Other Maintenance,02/08/2019,Supplies & Services,98377,TRANSFORMATION,
725.00,Dta Electrical,Neighbourhoods,Waste & Fleet Management,Abbey Road Depot,4001,Service Maintenance Contracts,19/07/2019,Premises Related Expenditure,97455,NEIGHBOURHOODS,
721.09,Nottingham City Council,Neighbourhoods,Waste & Fleet Management,Eastcroft Depot,4002,Olas - Nottm City Council,19/08/2019,Third Party Payments,98697,NEIGHBOURHOODS,
720.00,Bsp Consulting,Capital Expenditure,Transformation & Innovation,Cotgrave Masterplan,0303,Legal & Professional Services,09/08/2019,Supplies & Services,98963,CAPITAL,
720.00,Wellbeing Clinic Ltd,Transformation,Human Resources,Human Resources,4709,Legal & Professional Services,25/09/2019,Supplies & Services,100155,TRANSFORMATION,
718.34,Print Image Network Ltd,Finance & Corporate Services,Democratic Services,Electoral Registration,1026,External Printing,26/07/2019,Supplies & Services,98045,FINANCE & CORPORATE SERVICES,
717.77,Haven Power Limited,Transformation,Property Services,Castle Donington,1863,Electricity,22/07/2019,Premises Related Expenditure,97983,NEIGHBOURHOODS,
717.77,Haven Power Limited,Transformation,Property Services,Castle Donington,1863,Electricity,19/08/2019,Premises Related Expenditure,98481,NEIGHBOURHOODS,
714.22,Haven Power Limited,Transformation,Property Services,Castle Donington,1863,Electricity,19/08/2019,Premises Related Expenditure,98953,NEIGHBOURHOODS,
712.77,Castle Water Limited,Communities,Community Development,Gamston Community Hall,8992,Water Charges,02/08/2019,Premises Related Expenditure,98141,COMMUNITIES,
700.00,Licence Check Ltd,Neighbourhoods,Environmental Health,Hackney Carriage/Private Hire,1031,Other Equipment/Materials,12/07/2019,Supplies & Services,97716,NEIGHBOURHOODS,
693.89,Yu Energy,Transformation,Property Services,Bridgford Hall,1883,Gas,19/08/2019,Premises Related Expenditure,98866,TRANSFORMATION,
684.65,Royal Mail Group Ltd,Assets,Current Assets,European Election,7102,Postages,12/07/2019,Supplies & Services,97594,FINANCE & CORPORATE SERVICES,
684.60,Cotgrave Town Council,Transformation,Economic Regeneration,Cotgrave Precinct,1885,Grounds Maintenance,19/07/2019,Premises Related Expenditure,98323,TRANSFORMATION,
684.00,Pulp Friction Smoothie Bar Project,Communities,Community Development,Health Development,1058,Projects & Activities,31/07/2019,Supplies & Services,98612,COMMUNITIES,
683.00,The Marquee Company Limited,Communities,Community Development,Arts,1550,Projects & Activities,10/07/2019,Supplies & Services,98021,COMMUNITIES,
680.59,The South Wolds Academy And Sixth Form,Neighbourhoods,Leisure Contracts & Car Parks,Leisure Management Contract,1795,Water Charges,17/09/2019,Premises Related Expenditure,99518,FINANCE & CORPORATE SERVICES,
675.98,The Saville Group Ltd,Finance & Corporate Services,Ict,It Rechargeable Costs,4722,Consumables,01/07/2019,Supplies & Services,97212,TRANSFORMATION,
675.00,A R Signs Ltd,Finance & Corporate Services,"Performance, Repn & Comms",Performance And Reputation,4710,External Printing,02/08/2019,Supplies & Services,98265,FINANCE & CORPORATE SERVICES,
674.40,Sherwood Farms Ltd,Neighbourhoods,Waste & Fleet Management,Waste Collection,8403,Other Equipment/Materials,10/07/2019,Supplies & Services,97928,NEIGHBOURHOODS,
658.22,Flyinghire Limited,Communities,Community Development,Arts,1550,Projects & Activities,12/07/2019,Supplies & Services,98165,COMMUNITIES,
657.35,Arden Winch & Co Ltd,Neighbourhoods,Waste & Fleet Management,Waste Collection,8403,Protective Clothing/Uniforms,10/07/2019,Supplies & Services,97515,NEIGHBOURHOODS,
656.30,The South Wolds Academy And Sixth Form,Neighbourhoods,Leisure Contracts & Car Parks,Leisure Management Contract,1795,Water Charges,25/09/2019,Premises Related Expenditure,99738,FINANCE & CORPORATE SERVICES,
656.25,Fixfire,Communities,Community Development,Gresham,8950,Planned Maintenance Recharge,05/09/2019,Supplies & Services,99567,COMMUNITIES,
655.56,Nottinghamshire County Council,Neighbourhoods,Leisure Contracts & Car Parks,Leisure Management Contract,1795,Grounds Maintenance,03/07/2019,Premises Related Expenditure,97816,FINANCE & CORPORATE SERVICES,
655.56,Nottinghamshire County Council,Neighbourhoods,Leisure Contracts & Car Parks,Leisure Management Contract,1795,Grounds Maintenance,19/08/2019,Premises Related Expenditure,98765,FINANCE & CORPORATE SERVICES,
655.56,Nottinghamshire County Council,Neighbourhoods,Leisure Contracts & Car Parks,Leisure Management Contract,1795,Grounds Maintenance,05/09/2019,Premises Related Expenditure,99601,FINANCE & CORPORATE SERVICES,
651.06,British Gas Business,Transformation,Property Services,Land Holdings,1884,Electricity,17/07/2019,Premises Related Expenditure,97806,TRANSFORMATION,
650.00,Heb Chartered Surveyors,Transformation,Economic Regeneration,Economic Development,1887,Feasibility Study,21/08/2019,Supplies & Services,99258,TRANSFORMATION,
650.00,Hex Productions,Finance & Corporate Services,"Performance, Repn & Comms",Performance And Reputation,4710,Legal & Professional Services,19/08/2019,Supplies & Services,97770,FINANCE & CORPORATE SERVICES,
650.00,Hex Productions,Finance & Corporate Services,"Performance, Repn & Comms",Performance And Reputation,4710,Legal & Professional Services,19/08/2019,Supplies & Services,98735,FINANCE & CORPORATE SERVICES,
650.00,Hex Productions,Finance & Corporate Services,"Performance, Repn & Comms",Performance And Reputation,4710,Legal & Professional Services,05/09/2019,Supplies & Services,99576,FINANCE & CORPORATE SERVICES,
650.00,Parkwood Leisure Ltd,Neighbourhoods,Leisure Contracts & Car Parks,Leisure Management Contract,1795,Responsive Works - Buildings,26/07/2019,Premises Related Expenditure,98034,FINANCE & CORPORATE SERVICES,
640.28,Maltby & Company,Neighbourhoods,Leisure Contracts & Car Parks,Leisure Management Contract,1795,Responsive Works - Buildings,22/07/2019,Premises Related Expenditure,97964,FINANCE & CORPORATE SERVICES,
636.77,Eon,Transformation,Property Services,New Offices - Cotgrave,4798,Electricity,03/07/2019,Premises Related Expenditure,97052,TRANSFORMATION,
635.00,Bounceabout,Communities,Community Development,Arts,1550,Projects & Activities,02/09/2019,Supplies & Services,99528,COMMUNITIES,
633.00,Medigold Health Consultancy Ltd,Transformation,Human Resources,Human Resources,4709,Occupational Health,27/08/2019,Employee Related Expenditure,99017,TRANSFORMATION,
629.35,Croner-I Limited,Transformation,Property Services,Property Services,4713,Subscriptions,02/08/2019,Supplies & Services,98254,TRANSFORMATION,
624.00,Pee Wee Toilet Hire,Communities,Community Development,Arts,1550,Projects & Activities,19/08/2019,Supplies & Services,99081,COMMUNITIES,
622.38,Lift & Engineering Services Ltd,Finance & Corporate Services,Financial Services,Suspense No Code,5224,Returned Creditors,10/07/2019,Returned Creditors,97968,FINANCE & CORPORATE SERVICES,
620.00,Thorn Baker Limited,Neighbourhoods,Waste & Fleet Management,Waste Collection,8403,Agency Staff,19/08/2019,Employee Related Expenditure,98336,NEIGHBOURHOODS,
620.00,Thorn Baker Limited,Neighbourhoods,Waste & Fleet Management,Waste Collection,8403,Agency Staff,27/08/2019,Employee Related Expenditure,98665,NEIGHBOURHOODS,
619.00,Hiring Wizard,Communities,Planning & Growth,Development Control,1161,Employee Advertising,10/07/2019,Employee Related Expenditure,97711,COMMUNITIES,
614.44,British Gas Business,Transformation,Property Services,The Point,1886,Electricity,12/07/2019,Premises Related Expenditure,97981,TRANSFORMATION,
611.40,Ccs Media,Capital Expenditure,Finance & Corporate,Ict Replacement Programme,0592,Computer Hardware,10/09/2019,Supplies & Services,99493,CAPITAL,
602.84,Maltby & Company,Communities,Community Development,Alford Road,8940,Responsive Works - Buildings,19/09/2019,Premises Related Expenditure,99938,COMMUNITIES,
601.24,Lyreco,Communities,Community Development,Facilities Team,4714,Cleaning Equipment/Materials,26/07/2019,Supplies & Services,97793,COMMUNITIES,
600.00,Asbestos Management Solutions Limited,Capital Expenditure,Transformation & Innovation,Cotgrave Phase 2,0387,Legal & Professional Services,10/07/2019,Supplies & Services,97605,CAPITAL,
600.00,Wilford Lane Garage & Autocentre,Neighbourhoods,Environmental Health,Hackney Carriage/Private Hire,1031,Contractors-Transport,20/09/2019,Transport Related Expenditure,99645,NEIGHBOURHOODS,
595.20,Thorn Baker Limited,Finance & Corporate Services,Financial Services,Suspense No Code,5224,Returned Creditors,08/08/2019,Returned Creditors,98671,FINANCE & CORPORATE SERVICES,
595.00,Brooks Jordan Training,Transformation,Human Resources,Corporate Training,4893,Training Expenses,02/09/2019,Employee Related Expenditure,99115,TRANSFORMATION,
593.85,Corona Energy Retail 3 Ltd,Neighbourhoods,Waste & Fleet Management,Abbey Road Depot,4001,Electricity,22/07/2019,Premises Related Expenditure,97424,NEIGHBOURHOODS,
593.25,Reach Publishing Services Limited,Communities,Planning & Growth,Development Control,1161,Advertising,19/09/2019,Supplies & Services,99902,COMMUNITIES,
589.11,Bt Telephone Payment Centre,Finance & Corporate Services,Ict,Telephones,4870,Telephone Rental,16/07/2019,Supplies & Services,97988,TRANSFORMATION,
588.16,The South Wolds Academy And Sixth Form,Neighbourhoods,Leisure Contracts & Car Parks,Leisure Management Contract,1795,Water Charges,30/07/2019,Premises Related Expenditure,98226,FINANCE & CORPORATE SERVICES,
581.25,Srp Toilet Hire,Communities,Community Development,West Bridgford Town Centre,1875,Publicity & Promotion,17/09/2019,Supplies & Services,99900,TRANSFORMATION,
574.00,Cornerstone Barristers,Finance & Corporate Services,Democratic Services,Constitutional Services Ha,4700,Legal & Professional Services,30/07/2019,Supplies & Services,98593,OBSOLETE,
570.00,Maltby & Company,Communities,Community Development,West Park,8994,Responsive Works - Buildings,27/08/2019,Premises Related Expenditure,99363,COMMUNITIES,
569.52,Reach Publishing Services Limited,Communities,Planning & Growth,Development Control,1161,Advertising,08/08/2019,Supplies & Services,98839,COMMUNITIES,
567.96,Qa Ltd,Finance & Corporate Services,Ict,It,4703,Training Expenses,10/07/2019,Employee Related Expenditure,97657,TRANSFORMATION,
567.96,Qa Ltd,Finance & Corporate Services,Ict,It,4703,Training Expenses,10/07/2019,Employee Related Expenditure,97658,TRANSFORMATION,
566.25,Grannies Ltd,Finance & Corporate Services,Democratic Services,Mayoral Expenses,1001,Hospitality,30/09/2019,Supplies & Services,100076,FINANCE & CORPORATE SERVICES,
561.55,The Irongate Group Limited,Transformation,Bsu,Business Support Unit,4805,Stationery,17/09/2019,Supplies & Services,99591,TRANSFORMATION,
561.00,Marshall Fleet Solutions,Neighbourhoods,Waste & Fleet Management,Garage,8700,Repairs By Contract,27/08/2019,Transport Related Expenditure,26463,NEIGHBOURHOODS,
550.20,Streetwise Environmental Ltd,Transformation,Property Services,Land At Chapel Lane,4799,Responsive Works - Buildings,05/09/2019,Premises Related Expenditure,99096,TRANSFORMATION,
550.00,Bsp Consulting,Capital Expenditure,Transformation & Innovation,Colliers Way Industrial Units,0368,Contractors-Third Party,12/07/2019,Third Party Payments,98007,CAPITAL,
550.00,Bsp Consulting,Capital Expenditure,Transformation & Innovation,Cotgrave Phase 2,0387,Legal & Professional Services,25/09/2019,Supplies & Services,100168,CAPITAL,
550.00,P.Waller (Decorators) Ltd,Neighbourhoods,Strategic Housing,Hostel Hound Lodge,1111,Planned Maintenance Recharge,30/09/2019,Supplies & Services,100152,NEIGHBOURHOODS,
550.00,Software Box Ltd,Finance & Corporate Services,Ict,It Rechargeable Costs,4722,Maintenance Contracts - S&S,30/07/2019,Supplies & Services,98242,TRANSFORMATION,
544.00,Nottingham City Council,Neighbourhoods,Waste & Fleet Management,Eastcroft Depot,4002,Olas - Nottm City Council,19/08/2019,Third Party Payments,99045,NEIGHBOURHOODS,
543.75,Ninesharp Ltd,Finance & Corporate Services,Ict,It,4703,Agency Staff,25/09/2019,Employee Related Expenditure,99914,TRANSFORMATION,
540.00,Fred Brown Car Repairs Limited,Neighbourhoods,Environmental Health,Hackney Carriage/Private Hire,1031,Contractors-Transport,03/07/2019,Transport Related Expenditure,97807,NEIGHBOURHOODS,
536.50,Ninesharp Ltd,Finance & Corporate Services,Ict,It,4703,Agency Staff,30/09/2019,Employee Related Expenditure,100055,TRANSFORMATION,
535.05,Susan Hart Nutrition Coach,Communities,Community Development,Sports Development,1593,Projects & Activities,17/09/2019,Supplies & Services,99906,COMMUNITIES,
532.40,Fixfire,Communities,Community Development,Lutterell Hall,8990,Planned Maintenance Recharge,30/07/2019,Supplies & Services,98585,COMMUNITIES,
532.37,Susan Hart Nutrition Coach,Communities,Community Development,Health Development,1058,Other Miscellaneous Expenses,30/07/2019,Supplies & Services,98613,COMMUNITIES,
525.45,Reach Publishing Services Limited,Communities,Planning & Growth,Conservation,1171,Advertising,05/09/2019,Supplies & Services,99677,COMMUNITIES,
521.95,Civica Uk Ltd,Neighbourhoods,Strategic Housing,Choice Based Lettings,1107,Partnership Workings,10/09/2019,Supplies & Services,99347,NEIGHBOURHOODS,
520.75,Clearwater Technology Ltd,Transformation,Property Services,Arena Civic Centre,4718,Service Maintenance Contracts,27/08/2019,Premises Related Expenditure,98831,TRANSFORMATION,
519.85,Fixfire,Communities,Community Development,Sir Julien Cahn Pavilion,8993,Planned Maintenance Recharge,27/08/2019,Supplies & Services,99093,COMMUNITIES,
518.00,Telefonica Uk Limited,Capital Expenditure,Finance & Corporate,Ict Replacement Programme,0592,Computer Hardware,02/08/2019,Supplies & Services,98004,CAPITAL,
516.80,Streetwise Environmental Ltd,Communities,Community Development,Arts,1550,Projects & Activities,17/09/2019,Supplies & Services,99095,COMMUNITIES,
516.00,Idox Software Limited,Finance & Corporate Services,Ict,It Rechargeable Costs,4722,Maintenance Contracts - S&S,21/08/2019,Supplies & Services,98970,TRANSFORMATION,
513.00,A R Signs Ltd,Finance & Corporate Services,"Performance, Repn & Comms",Performance And Reputation,4710,External Printing,10/09/2019,Supplies & Services,99358,FINANCE & CORPORATE SERVICES,
512.06,The Irongate Group Limited,Transformation,Bsu,Business Support Unit,4805,Stationery,17/09/2019,Supplies & Services,99592,TRANSFORMATION,
506.88,Eon,Transformation,Economic Regeneration,Cotgrave Hub/Msc -Shared Entry,1878,Electricity,19/07/2019,Premises Related Expenditure,98126,TRANSFORMATION,
503.12,Water Plus,Transformation,Economic Regeneration,Bingham Market Stalls,1880,Electricity,22/07/2019,Premises Related Expenditure,98231,TRANSFORMATION,
490.04,Maltby & Company,Transformation,Property Services,Arena Civic Centre,4718,Responsive Works - Buildings,19/08/2019,Premises Related Expenditure,98872,TRANSFORMATION,
460.00,Access Doors Ltd,Communities,Community Development,West Park,8994,Service Maintenance Contracts,05/09/2019,Premises Related Expenditure,99291,COMMUNITIES,
450.00,Blade Runners Commercial Ltd,Transformation,Property Services,The Point,1886,Contract Cleaning,09/08/2019,Premises Related Expenditure,98678,TRANSFORMATION,
347.50,Clearwater Technology Ltd,Communities,Community Development,Gresham,8950,Service Maintenance Contracts,27/08/2019,Premises Related Expenditure,98831,COMMUNITIES,
338.00,Hiring Wizard,Neighbourhoods,Environmental Health,Environmental Health Ha,4743,Employee Advertising,21/08/2019,Employee Related Expenditure,99107,NEIGHBOURHOODS,
335.00,Access Doors Ltd,Communities,Community Development,Rushcliffe Country Park,1375,Service Maintenance Contracts,05/09/2019,Premises Related Expenditure,99291,COMMUNITIES,
311.71,Reach Publishing Services Limited,Communities,Planning & Growth,Conservation,1171,Advertising,08/08/2019,Supplies & Services,98701,COMMUNITIES,
300.00,Pulp Friction Smoothie Bar Project,Communities,Community Development,Health Development,1058,Other Miscellaneous Expenses,03/07/2019,Supplies & Services,97850,COMMUNITIES,
300.00,Pulp Friction Smoothie Bar Project,Communities,Community Development,Sports Development,1593,Projects & Activities,03/07/2019,Supplies & Services,97850,COMMUNITIES,
260.00,Access Doors Ltd,Communities,Community Development,Gresham,8950,Service Maintenance Contracts,05/09/2019,Premises Related Expenditure,99291,COMMUNITIES,
229.17,Lex Leisure,Assets,Current Assets,European Election,7102,Hospitality,26/07/2019,Supplies & Services,97771,FINANCE & CORPORATE SERVICES,
225.00,Clearwater Technology Ltd,Neighbourhoods,Waste & Fleet Management,Abbey Road Depot,4001,Service Maintenance Contracts,27/08/2019,Premises Related Expenditure,98831,NEIGHBOURHOODS,
221.48,Reach Publishing Services Limited,Communities,Planning & Growth,Conservation,1171,Advertising,27/08/2019,Supplies & Services,99295,COMMUNITIES,
213.75,Clearwater Technology Ltd,Communities,Community Development,Alford Road,8940,Service Maintenance Contracts,27/08/2019,Premises Related Expenditure,98831,COMMUNITIES,
213.75,Clearwater Technology Ltd,Neighbourhoods,Strategic Housing,Hostel Hound Lodge,1111,Service Maintenance Contracts,27/08/2019,Premises Related Expenditure,98831,NEIGHBOURHOODS,
210.18,Reach Publishing Services Limited,Communities,Planning & Growth,Development Control,1161,Advertising,05/09/2019,Supplies & Services,99677,COMMUNITIES,
191.25,Clearwater Technology Ltd,Communities,Community Development,West Park,8994,Service Maintenance Contracts,27/08/2019,Premises Related Expenditure,98831,COMMUNITIES,
169.00,Hiring Wizard,Communities,Community Development,Facilities Team,4714,Employee Advertising,21/08/2019,Employee Related Expenditure,99107,COMMUNITIES,
146.75,Clearwater Technology Ltd,Communities,Community Development,Lutterell Hall,8990,Service Maintenance Contracts,27/08/2019,Premises Related Expenditure,98831,COMMUNITIES,
145.00,Dta Electrical,Communities,Community Development,Gresham,8950,Responsive Works-Fixed Plant,19/07/2019,Premises Related Expenditure,97455,COMMUNITIES,
135.00,Access Doors Ltd,Communities,Community Development,Alford Road,8940,Service Maintenance Contracts,05/09/2019,Premises Related Expenditure,99291,COMMUNITIES,
135.00,Clearwater Technology Ltd,Communities,Community Development,Rushcliffe Country Park,1375,Service Maintenance Contracts,27/08/2019,Premises Related Expenditure,98831,COMMUNITIES,
123.75,Clearwater Technology Ltd,Communities,Community Development,Sir Julien Cahn Pavilion,8993,Service Maintenance Contracts,27/08/2019,Premises Related Expenditure,98831,COMMUNITIES,
120.00,Blade Runners Commercial Ltd,Transformation,Property Services,Bridgford Hall,1883,Contract Cleaning,09/08/2019,Premises Related Expenditure,98678,TRANSFORMATION,
112.50,Clearwater Technology Ltd,Communities,Community Development,Gamston Community Hall,8992,Service Maintenance Contracts,27/08/2019,Premises Related Expenditure,98831,COMMUNITIES,
110.00,Access Doors Ltd,Communities,Community Development,Lutterell Hall,8990,Service Maintenance Contracts,05/09/2019,Premises Related Expenditure,99291,COMMUNITIES,
103.89,Maltby & Company,Transformation,Property Services,Parish Run Pub Conveniences,1072,Responsive Works - Buildings,19/08/2019,Premises Related Expenditure,98872,TRANSFORMATION,
94.92,Reach Publishing Services Limited,Communities,Planning & Growth,Conservation,1171,Advertising,10/07/2019,Supplies & Services,97854,COMMUNITIES,
90.61,Reach Publishing Services Limited,Communities,Planning & Growth,Conservation,1171,Advertising,19/07/2019,Supplies & Services,98033,COMMUNITIES,
87.01,Reach Publishing Services Limited,Communities,Planning & Growth,Conservation,1171,Advertising,19/08/2019,Supplies & Services,99077,COMMUNITIES,
85.00,Access Doors Ltd,Communities,Community Development,Sir Julien Cahn Pavilion,8993,Service Maintenance Contracts,05/09/2019,Premises Related Expenditure,99291,COMMUNITIES,
76.66,Reach Publishing Services Limited,Communities,Planning & Growth,Conservation,1171,Advertising,19/08/2019,Supplies & Services,98886,COMMUNITIES,
75.94,Reach Publishing Services Limited,Communities,Planning & Growth,Conservation,1171,Advertising,19/07/2019,Supplies & Services,98311,COMMUNITIES,
75.00,Blade Runners Commercial Ltd,Transformation,Property Services,New Offices - Cotgrave,4798,Contract Cleaning,09/08/2019,Premises Related Expenditure,98678,TRANSFORMATION,
60.00,Access Doors Ltd,Communities,Community Development,Gamston Community Hall,8992,Service Maintenance Contracts,05/09/2019,Premises Related Expenditure,99291,COMMUNITIES,
60.00,Access Doors Ltd,Transformation,Property Services,The Point,1886,Service Maintenance Contracts,05/09/2019,Premises Related Expenditure,99291,TRANSFORMATION,
55.50,Maltby & Company,Neighbourhoods,Waste & Fleet Management,Abbey Road Depot,4001,Responsive Works - Buildings,19/08/2019,Premises Related Expenditure,98872,NEIGHBOURHOODS,
45.00,Blade Runners Commercial Ltd,Communities,Community Development,Gamston Community Hall,8992,Contract Cleaning,09/08/2019,Premises Related Expenditure,98678,COMMUNITIES,
37.50,Edenred,Transformation,Human Resources,Human Resources,4709,Flexible Benefits,19/08/2019,Employee Related Expenditure,99021,TRANSFORMATION,
36.64,Edenred,Transformation,Human Resources,Human Resources,4709,Flexible Benefits,17/09/2019,Employee Related Expenditure,99883,TRANSFORMATION,
25.00,Lex Leisure,Assets,Current Assets,European Election,7102,Stationery,26/07/2019,Supplies & Services,97771,FINANCE & CORPORATE SERVICES,
25.00,Lex Leisure,Finance & Corporate Services,Democratic Services,Borough Council Elections,1021,Stationery,26/07/2019,Supplies & Services,97975,FINANCE & CORPORATE SERVICES,
24.87,Daisy Communications Ltd,Finance & Corporate Services,Ict,Telephones,4870,Telephone Call Charges,28/08/2019,Supplies & Services,97982,TRANSFORMATION,
0.51,Royal Mail Group Ltd,Transformation,Bsu,Central Mail,4871,Postages,01/07/2019,Supplies & Services,97338,TRANSFORMATION,
-913.03,Gedling Borough Council,Finance & Corporate Services,Democratic Services,Borough Council Elections,1021,Election Fees,19/07/2019,Employee Related Expenditure,98368,FINANCE & CORPORATE SERVICES,
"-10,134.00",Cotgrave Town Council,Neighbourhoods,Leisure Contracts & Car Parks,Leisure Management Contract,1795,O.L.A Contribution,25/09/2019,Income,95385,FINANCE & CORPORATE SERVICES,
"31,051,323.60",,,,,,,,,,
